Workbook

Sheet Aanvraag inhuur
A1: Aanvraag Inhuur ICT | B1: - CJIB | C1: Referentienummer (wordt ingevuld door inhuurdesk) | H1: 4.0
A2: =CONCATENATE("AV",D1) -> AV | B2: ='Brongegevens dienst'!A10 -> K:\5 Inkooptrajecten\5.7 Inhuur\ICT\CJIB\ | C2: =CONCATENATE("RI",D1) -> RI | I2: ='Brongegevens dienst'!A10 -> K:\5 Inkooptrajecten\5.7 Inhuur\ICT\CJIB\
A3: Ongewijzigde herhalingsaanvraag* | B3: Nee | C3: è Indien ja, gebaseerd op referentienummer | H3: !IUC-N | I3: =CONCATENATE("AV",D1) -> AV
I4: ='Brongegevens dienst'!A12 -> 0
A5: Soort Aanvraag* | B5: Regulier | C5: è Toelichting soort aanvraag | I5: ='Brongegevens dienst'!A10 -> K:\5 Inkooptrajecten\5.7 Inhuur\ICT\CJIB\
A6: Eventueel maximum uurtarief | C6: =IF(B6>0,"Ja","Nee") -> Nee
A7: Spoedaanvraag* | B7: Nee | C7: è Toelichting spoedaanvraag
A8: Aanvraag Perceel 1 (Inhuur) of Perceel 2 (Detavast)*
A9: Aanvraagformulier volledig invullen en als bijlage via een email naar de inhuurdesk verzenden. Velden met een * zijn verplicht in te vullen. | C9: ='Brongegevens dienst'!B20 -> iuc-inhuur@iuc-noord.nl | D9: ='Brongegevens dienst'!B21 -> 050-5998884
B11: AANVRAGER
A13: Departement* | B13: Ministerie van Justitie & Veiligheid
A14: Deelnemende dienst* | B14: CJIB
A15: Afdeling/ Bedrijfsonderdeel*
A16: Inhurend manager*
B18: OPDRACHT
A20: Opdrachtbeschrijving * - werkzaamheden of - prestatiedoelstelling
A22: Achtergrond opdracht*
A24: Organisatorische context en cultuur | B24: ='Brongegevens dienst'!A23 -> Het CJIB is een relatief jonge en ambitieuze uitvoeringsorganisatie van het Ministerie van Justitie en Veiligheid, en is gevestigd te Leeuwarden. Ruim 1200 gedreven medewerkers zorgen ervoor dat onze taken op de juiste wijze, ondersteund door adequate ICT en binnen de beschikbare middelen worden uitgevoerd. De ICT-organisatie heeft een interne schil met de mogelijkheid flexibel bij te schakelen. Het CJIB werkt met DevOps-teams. Zij ontwikkelt en beheert hoogwaardige (ICT) producten.
B27: PLANNING (IN TE VULLEN DOOR DE INHUURDESK)
A29: Planning | B29: Datum offerte aanvraag* | C29: =NOW() -> 2020-12-28T15:16:22.910 | D29: =NOW() -> 44193.63638
B31: Eindmoment stellen van vragen* | C31: =IF(C29>0,WORKDAY(C29,1,Feestdagen),"") -> 2020-12-29 | D31: =D29 -> 44193.63638
B32: Eindmoment beantwoording vragen* | C32: =IF(C31>0,WORKDAY(C31,1,Feestdagen),"") -> 2020-12-30 | D32: =D29 -> 44193.63638
B34: Indienen offertes* | C34: =IF(C32>0,WORKDAY(C32,2,Feestdagen),"") -> 2021-01-04 | D34: =D29 -> 44193.63638
B36: Data interviews
B38: Streefdatum mededeling gunning*
B40: SELECTIE KWALITEITENPROFIEL UIT KWALITEITSRAAMWERK I(v)
A41: Selecteer vanuit het kwaliteitsraamwerk I(v) vanuit de hoofdgroep het meest dominante kwaliteitenprofiel en de functiefamilie voor deze functie om het gewenste resultaat van de opdracht te behalen. Geef vervolgens aan op welk(e) professionele kennisgebied(en) de aanvraag specifiek betrekking heeft. Er moet minimaal één kennisgebied vereist zijn, maar meer mag ook. De benoemde certificaten zijn voorbeelden, die eventueel aangepast kunnen worden.
A43: Hoofdgroep* | B43: Mogelijk maken | C43: Kwaliteitenprofiel*
A44: Functiefamilie* | B44: Uitvoering | C44: Bijbehorende competenties | D44: =IF($B$44="","",VLOOKUP(B44,$K$45:$N$47,4,FALSE)) ->  | K44: =IF($D$43=0,"",VLOOKUP($D$43,'Kwaliteitsraamwerk I(v)'!$G$2:$AE$62,10,FALSE)) ->  | L44: =IF($D$43=0,"",VLOOKUP($D$43,'Kwaliteitsraamwerk I(v)'!$G$2:$AE$62,11,FALSE)) ->  | M44: =IF($D$43=0,"",VLOOKUP($D$43,'Kwaliteitsraamwerk I(v)'!$G$2:$AE$62,12,FALSE)) ->  | N44: =IF($D$43=0,"",VLOOKUP($D$43,'Kwaliteitsraamwerk I(v)'!$G$2:$AE$62,13,FALSE)) -> 
A45: Functiegroep | B45: =IF($B$44="","",VLOOKUP(B44,$K$45:$M$47,2,FALSE)) ->  | K45: =IF($D$43=0,"",VLOOKUP($D$43,'Kwaliteitsraamwerk I(v)'!$G$2:$AG$62,14,FALSE)) ->  | L45: =IF($D$43=0,"",VLOOKUP($D$43,'Kwaliteitsraamwerk I(v)'!$G$2:$AG$62,15,FALSE)) ->  | M45: =IF($D$43=0,"",VLOOKUP($D$43,'Kwaliteitsraamwerk I(v)'!$G$2:$AG$62,16,FALSE)) ->  | N45: =IF($D$43=0,"",VLOOKUP($D$43,'Kwaliteitsraamwerk I(v)'!$G$2:$AG$62,17,FALSE)) -> 
A46: Schaalrange | B46: =IF($B$44="","",VLOOKUP(B44,$K$45:$M$47,3,FALSE)) ->  | K46: =IF($D$43=0,"",VLOOKUP($D$43,'Kwaliteitsraamwerk I(v)'!$G$2:$AG$62,18,FALSE)) ->  | L46: =IF($D$43=0,"",VLOOKUP($D$43,'Kwaliteitsraamwerk I(v)'!$G$2:$AG$62,19,FALSE)) ->  | M46: =IF($D$43=0,"",VLOOKUP($D$43,'Kwaliteitsraamwerk I(v)'!$G$2:$AG$62,20,FALSE)) ->  | N46: =IF($D$43=0,"",VLOOKUP($D$43,'Kwaliteitsraamwerk I(v)'!$G$2:$AG$62,21,FALSE)) -> 
B47: Professionele Kennisgebieden | C47: Certificaten | J47: =IF(B48=" ","V"," ") ->  | K47: =IF($D$43=0,"",VLOOKUP($D$43,'Kwaliteitsraamwerk I(v)'!$G$2:$AG$62,22,FALSE)) ->  | L47: =IF($D$43=0,"",VLOOKUP($D$43,'Kwaliteitsraamwerk I(v)'!$G$2:$AG$62,23,FALSE)) ->  | M47: =IF($D$43=0,"",VLOOKUP($D$43,'Kwaliteitsraamwerk I(v)'!$G$2:$AG$62,24,FALSE)) ->  | N47: =IF($D$43=0,"",VLOOKUP($D$43,'Kwaliteitsraamwerk I(v)'!$G$2:$AG$62,25,FALSE)) -> 
B48: =IF($D$43=0,"",VLOOKUP($D$43,'Kwaliteitsraamwerk I(v)'!$G$2:$AG$62,2,FALSE)) ->  | C48: =IF($D$43=0,"",VLOOKUP($D$43,'Kwaliteitsraamwerk I(v)'!$G$2:$AG$62,3,FALSE)) ->  | J48: =IF(B48=" ","V"," ") -> 
B49: =IF($D$43=0,"",VLOOKUP($D$43,'Kwaliteitsraamwerk I(v)'!$G$2:$AG$62,4,FALSE)) ->  | C49: =IF($D$43=0,"",VLOOKUP($D$43,'Kwaliteitsraamwerk I(v)'!$G$2:$AG$62,5,FALSE)) -> 
B50: =IF($D$43=0,"",VLOOKUP($D$43,'Kwaliteitsraamwerk I(v)'!$G$2:$AG$62,6,FALSE)) ->  | C50: =IF($D$43=0,"",VLOOKUP($D$43,'Kwaliteitsraamwerk I(v)'!$G$2:$AG$62,7,FALSE)) -> 
B51: =IF($D$43=0,"",VLOOKUP($D$43,'Kwaliteitsraamwerk I(v)'!$G$2:$O$62,8,FALSE)) ->  | C51: =IF($D$43=0,"",VLOOKUP($D$43,'Kwaliteitsraamwerk I(v)'!$G$2:$AG$62,9,FALSE)) -> 
B52: =IF($D$43=0,"",VLOOKUP($D$43,'Kwaliteitsraamwerk I(v)'!$G$2:$AG$62,10,FALSE)) ->  | C52: =IF($D$43=0,"",VLOOKUP($D$43,'Kwaliteitsraamwerk I(v)'!$G$2:$AG$62,11,FALSE)) -> 
B53: =IF($D$43=0,"",VLOOKUP($D$43,'Kwaliteitsraamwerk I(v)'!$G$2:$AG$62,12,FALSE)) ->  | C53: =IF($D$43=0,"",VLOOKUP($D$43,'Kwaliteitsraamwerk I(v)'!$G$2:$AG$62,13,FALSE)) -> 
B54: Aanvullende kennisgebieden/Voorbeelden van opleidingen | J54: =IF(B55=" ","V"," ") -> 
B55: =IF($D$43=0,"",VLOOKUP($D$43,'Kwaliteitsraamwerk I(v)'!$G$2:$AG$62,27,FALSE)) -> 
B56: Toelichting | J56: =IF(B57=" ","V"," ") -> 
B57: =IF($D$43=0,"",VLOOKUP($D$43,'Kwaliteitsraamwerk I(v)'!$G$2:$AG$62,26,FALSE)) ->  | J57: =IF(B57=" ","V"," ") -> 
A59: Functieschaal deze aanvraag conform BBRA*
A61: Functienaam (roepnaam)
B63: EISEN BIJ DEZE AANVRAAG | C63: â Let op! Eisen zijn knock-out criteria, SMART/meetbaar maken
B64: Professionele Kennisgebieden* | C64: Opleiding, Certificaten, Kennisniveau*
A65: Dominant Kwaliteitenprofiel*
B70: Kwaliteitenprofielen | C70: Opleiding, Certificaten, Kennisniveau
A71: Overige vereiste kennisgebieden uit kwaliteits-raamwerk I(v)
H75: Bewezen aantal jaar
B76: Werk- en denkniveau (algemeen en specifiek)
A77: Ervaring
B84: WENSEN BIJ DEZE AANVRAAG
A86: Competenties
A91: Aanvullende kennis
A96: Overige functiewensen
B101: WEGING GUNNINGSCRITERIA
A102: Vul een waarde in, indien een criterium van toepassing is. Totaal van alle ingevulde criteria moet gelijk zijn aan 100.
A104: Criteria* | B104: Initieel Tarief | C104: 20 | H104: Prijscriteria
B105: Tarief verlenging (kortingspercentage)
B106: Duurzaamheidsaspecten bij inzet | D106: Basis beoordeling naar aanleiding van nadere offerte | H106: Kwalitatieve criteria
B107: Relevante werkervaring | C107: 20 | E107: Verificatie in selectiegesprek
B108: Kennis, competenties kandidaat | C108: 20
B109: Beschikbaarheid kandidaat
B110: Social Return kandidaat
B111: Kandidaat begrijpt opdracht | C111: 20 | D111: Beoordeling d.m.v. selectiegesprek
B112: Kandidaat past bij organisatie | C112: 20
B113: Totaal | C113: =SUM(C104:C112) -> 100
A115: Toelichting duurzaamheid (verplicht indien meetellend voor gunning)
A117: Toelichting beschikbaarheid (verplicht indien meetellend voor gunning)
B119: INZETGEGEVENS
A121: Inzetgegevens | B121: Gewenste startdatum*
B122: Initiële einddatum* | D122: Aantal maanden initiële inhuurtermijn | G122: =IF(C122<>0,IF(DAY(C122)>=DAY(C121),0,-1)+(YEAR(C122)-YEAR(C121)) *12+MONTH(C122)-MONTH(C121)+1,0) -> 0
B124: Optie op verlenging*
B125: Verlengingsinformatie gebaseerd op periode(s) | D125: of Verlengingsinformatie gebaseerd op een project
B126: Maximaal aantal verlengingen | D126: Geplande einddatum project
B127: Termijn per verlenging in maanden | D127: =IF(C124="Ja",IF(OR(C126<>0,C127<>0),IF(F126<>0,"Slechts één deel verlengingsinformatie invullen",""),""),"") -> 
B128: =IF(C122>0,"Verwachte uiterste einddatum inzet","") ->  | C128: =IF(C122>0,IF(C124="Ja",IF(C126*C127>0,IF(C122>0,EDATE(C122,C126*C127),IF(C122>0,C122,"")),IF(F126>0,F126,C122)),IF(C122>0,C122,"")),"") -> 
B129: Uren per week*
B130: Max. aantal uren initiële inhuurtermijn* | C130: =(NETWORKDAYS(C121,C122,'Brongegevens dienst'!I4:Q27)*(C129/5)) -> 0
B132: Vergoeding dienstreizen inbegrepen in tarief Toelichting | C132: Ja
B135: Postcode hoofdstandplaats | C135: 8911 AV
B136: Naam hoofdstandplaats | C136: Leeuwarden
B137: Extra standplaats(en)
B139: Screeningsitems VOG | C139: 55
B140: Veiligheidsonderzoek vereist* | C140: Nee
B141: VOG aanwezig voor start inzet* | C141: Ja
B143: Vrije vervanging bespreekbaar* | C143: Ja
B144: Parttimers toegestaan* | C144: Nee
B145: Offsite werken bespreekbaar* | C145: Ja
B146: Social return kandidaat gewenst* | C146: Indifferent
B147: Consignatiediensten* | C147: Nee
B148: Betrokkenheid bij aanbestedingen* | C148: Nee
B150: Max. aantal CV's per opdrachtnemer* | C150: 1 | D150: Bij meerdere geschikte kandidaten behoudt de dienst zich het recht voor om meerdere gunningen te doen.

Sheet Kwaliteitsraamwerk I(v) (hidden)
A1: Hoofgroep | B1: Plannen | C1: Bouwen | D1: Uitvoeren | E1: Mogelijk maken | F1: Sturen | G1: Kwaliteitenprofielen | H1: PK1 | I1: C1 | J1: PK2 | K1: C2 | L1: PK3 | M1: C3 | N1: PK4 | O1: C4 | P1: PK5 | Q1: C5 | R1: PK6 | S1: C6 | T1: Functiefamilie 1 | U1: Functiegroep 1 | V1: Schaal 1 | W1: Competenties 1 | X1: Functiefamilie 2 | Y1: Functiegroep 2 | Z1: Schaal 2 | AA1: Competenties 2 | AB1: Functiefamilie 3 | AC1: Functiegroep 3 | AD1: Schaal 3 | AE1: Competenties 3 | AF1: Toelichting | AG1: Voorbeelden van opleidingen
A2: Plannen | B2: 1.1.1 Informatiearchitectuur | C2: 2.1.1 Applicatieontwikkeling | D2: 3.1.1 Systeembeheer | E2: 4.1.1 Securitymanagement | F2: 5.1.1 Projectleiderschap I(V) | G2: 1.1.1 Informatiearchitectuur | H2: Bestuurlijke informatica | I2: Bachelor Bedrijfskundige Informatica | J2: Architectuur (methoden, modelleer-technieken, tools, modellen, etc.) | K2: TOGAF Practitioner; NORA (geen certificering); MARIJ (geen certificering); SCIA, ERIA, basisopleiding architectuur Belastingdienst; DIVA (Defensie), Archimate Foundation & Practitioner | L2: Informatiemanagement | M2: Informatiemanagement | T2: Bedrijfsvoering | U2: Senior Adviseur Bedrijfsvoering | V2: 11-13 | W2: analyseren, creativiteit, netwerken, omgevingsbewustzijn, organisatiesensitiviteit, overtuigingskracht, plannen en organiseren | X2: Uitvoering | Y2: Expert I(v) | Z2: 11-13 | AA2: analyseren, creativiteit, netwerken, omgevingsbewustzijn, organisatiesensitiviteit, overtuigingskracht, plannen en organiseren, resultaatgerichtheid | AF2: De informatiearchitect stelt - uitgaande van de principes van architectuur - de informatiearchitectuur op en beheert die architectuur (bijvoorbeeld gelet op gewijzigde informatiebehoeften van gebruikers). De informatiearchitectuur is de structuur van applicaties, databases en andere (data)gegevens verzamelingen (ook die in de niet-geautomatiseerde of in persoonlijke applicaties (zoals spreadsheets) opgenomen zijn. Bovendien worden de beleidsregels met betrekking tot het beheer van de (elementen van de) informatiearchitectuur opgesteld en beheerd. Een belangrijk aspect van deze functie is de integratie van informatiesystemen en (data) gegevens in een organisatie. Hoewel een datamanager meestal verantwoordelijk is voor het beheer van het bedrijfsdatamodel wordt dit voor de invulling van dit model vaak bij de data- of informatiearchitect belegd. | AG2: Information Security Foundation based on ISO/IEC 27002, Ontwikkeling Informatiesystemen Foundation
A3: Bouwen | B3: 1.1.2 Functioneel Ontwerp / Startarchitectuur | C3: 2.1.2 Systeemontwikkeling | D3: 3.1.2 Changemanagement | E3: 4.1.2 Informatie Risicomanagement | F3: 5.1.2 Projectmanagement I(V) | G3: 1.1.2 Functioneel Ontwerp / Startarchitectuur | H3: Proces Modelleren en Analyseren | I3: ARIS; Mavin, BiZZ designer | J3: Bedrijfsregels modelleren | K3: Business Rules Modeling Foundation Course | T3: Bedrijfsvoering | U3: Adviseur Bedrijfsvoering | V3: 8-11 | W3: analyseren, klantgerichtheid, omgevingsbewustzijn, plannen en organiseren, samenwerken, voortgangscontrole, zelfontwikkeling | X3: Uitvoering | Y3: Senior Medewerker Iv | Z3: 8-11 | AA3: analyseren, klantgerichtheid, omgevingsbewustzijn, plannen en organiseren, resultaatgerichtheid, samenwerken, voortgangscontrole, zelfontwikkeling | AF3: De functioneel ontwerper is gespecialiseerd in het opstellen van ontwerpen voor nieuwe informatiesystemen. Hij stelt samen met gebruikers en de opdrachtgever de functionele specificaties op waaraan een informatiesysteem moet voldoen. De functioneel ontwerper stelt het ontwerp op (mede) op basis van de input van een informatieanalist en of business analist die specifiek de eisen aan informatie bij de gebruikers analyseert en vaststelt (en modelleert). Het beheer en onderhoud van een informatiesysteem ligt meestal bij een functioneel beheerder en/of een applicatiebeheerder. De functioneel ontwerper levert ook een bijdrage aan testplannen voor functionele en acceptatie testen. | AG3: NORA, MARIJ (geen certificering), Ontwerp en Ontwikkeling Informatiesystemen Foundation; RAD/LAD; XML/UML; XBRL, Java; C#; .Net; Visual Basic; SAP/ERP; Cobol, Oracle; Databases en SQL Foundation; Objectoriëntatie Foundation, Testen Foundation; TMapNEXT Foundation
A4: Uitvoeren | B4: 1.1.3 Applicatiearchitectuur | C4: 2.1.3 Netwerkontwikkeling | D4: 3.1.3 Functioneel Beheer | E4: 4.1.3 Cyber Securitymanagement | F4: 5.1.3 Programmamanagement I(V) | G4: 1.1.3 Applicatiearchitectuur | H4: Bestuurlijke informatica | I4: Bachelor Bedrijfskundige Informatica | J4: Architectuur (methoden, modelleer-technieken, tools, modellen, etc.) | K4: TOGAF Practitioner; NORA (geen certificering); MARIJ (geen certificering); ERIA, basisopleiding architectuur Belastingdienst; DIVA (Defensie) Archimate Foundation & Practitioner | L4: Informatiemanagement | M4: Business Information Management Foundation | T4: Bedrijfsvoering | U4: Senior Adviseur Bedrijfsvoering | V4: 11-13 | W4: analyseren, creativiteit, netwerken, omgevingsbewustzijn, organisatiesensitiviteit, overtuigingskracht, plannen en organiseren | X4: Uitvoering | Y4: Expert I(v) | Z4: 11-13 | AA4: analyseren, creativiteit, netwerken, omgevingsbewustzijn, organisatiesensitiviteit, overtuigingskracht, plannen en organiseren, resultaatgerichtheid | AF4: De applicatie- of softwarearchitect draagt zorg voor het ontwerp van de architectuur van een totaal softwaresysteem en/of individuele applicaties en het technisch ontwerp daarvan. Hij werkt daarbij vanuit de principes van de architectuur (Nora - Gemma etc.). Deze functie komt voor in organisaties waar grote en complexe systemen worden ontwikkeld, bij de ontwikkeling van administratieve systemen en ook bij de ontwikkeling van embedded software. | AG4: Java; C#; .Net; Visual Basic; SAP/ERP; Groupware/Lotus Notes; Powerbuilder/Sybase; Cobol/Cics/DB2; Cool Gen, Information Security Foundation based on ISO/IEC 27002, Ontwikkeling Informatiesystemen Foundation, Applicatiemanagement Foundation
A5: Mogelijk maken | B5: 1.1.4 Technische Architectuur | C5: 2.1.4 Data Engineering | D5: 3.1.4 Serverbeheer | E5: 4.2.1 Categoriemanagement I(V) | F5: 5.1.4 Portfoliomanagement | G5: 1.1.4 Technische Architectuur | H5: Bestuurlijke Informatica | I5: Bachelor Bedrijfskundige Informatica | J5: Architectuur (methoden, modelleer-technieken, tools, modellen, etc.) | K5: TOGAF Practitioner; NORA (geen certificering); MARIJ (geen certificering); SCIA, ERIA, basisopleiding architectuur Belasting- dienst; DIVA (Defensie) Archimate Foundation & Practitioner | L5: Informatiemanagement | M5: Business Information Management Foundation | N5: Servicemanagement | O5: Professional ITSM Service Delivery | T5: Bedrijfsvoering | U5: Senior Adviseur Bedrijfsvoering | V5: 11-13 | W5: analyseren, creativiteit, netwerken, omgevingsbewustzijn, organisatiesensitiviteit, overtuigingskracht, plannen en organiseren | X5: Uitvoering | Y5: Expert I(v) | Z5: 11-13 | AA5: analyseren, creativiteit, netwerken, omgevingsbewustzijn, organisatiesensitiviteit, overtuigingskracht, plannen en organiseren, resultaatgerichtheid | AF5: De technische architect (o.a. infrastructuur) ontwerpt - op basis van architectuurprincipes - de (overall) structuur van de technische infrastructuur (netwerk, servers, storage). Deze architectuur van de technische infrastructuur moet worden gebaseerd op de informatiearchitectuur. Het automatiseringsbeleid en automatiseringsplannen. Hierbij wordt niet alleen een structuur ontworpen, maar vaak ook de eisen die aan de componenten van de technische infrastructuur worden gesteld, zoals eisen aan passieve en actieve netwerkcomponenten (ook multimedia), systeemsoftware (operatingsystemen en middleware), de netwerk(beheer) software, servers en server(beheer)software en storage. | AG5: Information Security Foundation based on ISO/IEC 27002, ITSM Foundation; ITIL Foundation
A6: Sturen | B6: 1.1.5 Systeem Architectuur | C6: 2.2.1 Testmanagement | D6: 3.1.5 Netwerkbeheer | E6: 4.2.2 Inkoop I(V) | F6: 5.2.1 Scrum Master | G6: 1.1.5 Systeem Architectuur | H6: Bestuurlijke Informatica | I6: Bachelor Bedrijfskundige Informatica | J6: Architectuur (methoden, modelleer-technieken, tools, modellen, etc.) | K6: TOGAF Practitioner; NORA (geen certificering); MARIJ (geen certificering); SCIA, ERIA, basisopleiding architectuur Belasting- dienst; DIVA (Defensie) Archimate Foundation & Practitioner | L6: Informatiemanagement | M6: Business Information Management Foundation | N6: Servicemanagement | O6: Professional ITSM Service Delivery | T6: Bedrijfsvoering | U6: Senior Adviseur Bedrijfsvoering | V6: 11-13 | W6: analyseren, creativiteit, netwerken, omgevingsbewustzijn, organisatiesensitiviteit, overtuigingskracht, plannen en organiseren | X6: Uitvoering | Y6: Expert I(v) | Z6: 11-13 | AA6: analyseren, creativiteit, netwerken, omgevingsbewustzijn, organisatiesensitiviteit, overtuigingskracht, plannen en organiseren, resultaatgerichtheid | AF6: De System Architect is een functie die met name in het Scaled Agile Framework voorkomt. Hij/zij is verantwoordelijk voor het opstellen van de Architectural Features op programma niveau. Hij/zij overziet het gehele domein in technische zin. In die hoedanigheid is dit een belangrijke schakel tussen de product of domeinvisie aan de ene kant, en de benodigde aanpassingen aan het domein specifieke IT landschap die realisatie van deze visie ondersteunen anderzijds. Om te komen tot realisatie van de corporate doelen op het gebied van convergentie en ondersteunen van de strategie vertaald de System Architect de Corporate Architectural Epics in Architectural Features. Deze vult hij/zij aan met eventuele lokaal benodigde architectural features. De System Architect is een belangrijke sparringpartner voor de Product Manager en Product Owners. Hij/zij zal moeten onderhandelen en bedingen welke architectural features gerealiseerd dienen te worden, alvorens de business features gerealiseerd kunnen worden. Vaak moet de fundering eerst worden versterkt, eer er op voortgebouwd kan worden. Dit noemt SAFe de 'Architectural Runway'. In deze hoedanigheid maakt de System Architect deel uit van het Product Management Team. | AG6: Information Security Foundation based on ISO/IEC 27002, ITSM Foundation; ITIL Foundation, SAFe Agilist, Leading SAFE Agile voor Lead engineers
B7: 1.1.6 Enterprise Architectuur | D7: 3.1.6 Applicatiebeheer | E7: 4.2.3 Relatiemanagement I(V) | F7: 5.2.2 Release Train Engineer | G7: 1.1.6 Enterprise Architectuur | H7: Bestuurlijke informatica | I7: Bachelor Bedrijfskundige Informatica | J7: Architectuur (methoden, modelleer-technieken, tools, modellen, etc.) | K7: TOGAF Practitioner; NORA (geen certificering); MARIJ (geen certificering); SCIA, ERIA, basisopleiding architectuur Belastingdienst; DIVA (Defensie) | L7: Informatiemanagement | M7: Business Information Management Foundation | T7: Bedrijfsvoering | U7: Senior Adviseur Bedrijfsvoering | V7: 11-13 | W7: analyseren, creativiteit, netwerken, omgevingsbewustzijn, organisatiesensitiviteit, overtuigingskracht, plannen en organiseren | X7: Uitvoering | Y7: Expert I(v) | Z7: 11-13 | AA7: analyseren, creativiteit, netwerken, omgevingsbewustzijn, organisatiesensitiviteit, overtuigingskracht, plannen en organiseren, resultaatgerichtheid | AF7: De Enterprise Architect is ontwerper van de totale informatievoorziening. Meestal is hij ook betrokken bij het ontwerp en het beheer van de bedrijfsarchitectuur c.q. de architectuur van het bedrijfsproces. De Enterprise Architect is in een SAFe omgeving verantwoordelijk voor het opstellen van de Architectural Epics op portfolio niveau. In die hoedanigheid vormt deze rol een belangrijke schakel tussen de bedrijfsvisie aan de ene kant, en de benodigde aanpassingen aan het IT landschap die realisatie van deze visie ondersteunen anderzijds. Het hebben van zicht op de huidige vorm en status en de gewenste vorm en status van het IT landschap en de business processen (IST en SOLL) biedt de mogelijkheid om stappen (delta's) te definiëren om tot het doel landschap te komen. Deze stappen kunnen worden vertaald naar Architectural Epics. Op bedrijfsniveau dan wel domein portfolio niveau kan de Enterprise Architect samen met de Business Analisten een team vormen die samen als een Scrum team zorgdragen voor opstellen van Epics, om zodoende de organisatie van werkvoorraad te voorzien. Het team kan werken als een Scrum team in sprints, maar de kanban werkwijze past hier ook. In elk geval visualiseren zij de voortgang van alle Epics middels een fysiek kanban bord. Voor die Epics die de Enterprise Architect opstelt kan hij de rol aan van Epic Owner aannemen. | AG7: Information Security Foundation based on ISO/IEC 27002, Ontwikkeling Informatiesystemen Foundation, Leading SAFE Agile voor Lead engineers, Writing User Stories , Opleiding Enterprise architectuur, Archimate Foundation & Practitioner
B8: 1.2.1 Informatiebeleid | D8: 3.1.7 Databasebeheer | E8: 4.2.4 Contract- / Leveranciermanagement | F8: 5.3.1 Informatiemanagement | G8: 1.2.1 Informatiebeleid | H8: Bestuurlijke informatica, Bestuurlijke in- formatiekunde | I8: Master Bedrijfskundige Informatica, Master Public Information Management | J8: Architectuur (methoden, modelleer-technieken, tools, modellen, etc.) | K8: TOGAF Practitioner; NORA (geen certificering); MARIJ (geen certificering); SCIA, ERIA, basisopleiding architectuur Belasting- dienst; DIVA (Defensie), Archimate Foundation & Practitioner | L8: Informatiemanagement | M8: Business Information Management Foundation | T8: Advisering | U8: Coördinerend Specialistisch Adviseur | V8: 13-15 | W8: Bestuurssensitiviteit, creativiteit, netwerken, motiveren, samenwerken, overtuigingskracht, plannen en organiseren | X8: Bedrijfsvoering | Y8: Coördinerend/Specialistisch Adviseur Bedrijfsvoering | Z8: 13-15 | AA8: Oordeelsvorming, creativiteit, netwerken, motiveren, omgevingsbewustzijn, organisatiesensitiviteit, overtuigingskracht, plannen en organiseren | AF8: Het belang van het kwaliteitenprofiel Informatiebeleid voor de goede samenhang tussen missie, bedrijfsdoelstellingen en benodigde informatievoorziening binnen het Rijk neemt toe. Werkzaamheden worden tegenwoordig in groter verband uitgevoerd waarbij nadrukkelijk relaties worden gelegd tussen overheidsorganisaties en bestuurlijke niveaus en waarbij gebruik wordt gemaakt van rijksbrede standaards, richtlijnen en afspraken. | AG8: Information Security Foundation based on ISO/IEC 27002, Ontwikkeling Informatiesystemen Foundation, Aplicatiemanagement Foundation, ITSM Foundation; ITIL Foundation
B9: 1.2.2 Innovatiemanagement | D9: 3.1.8 Recordbeheer | E9: 4.3.1 Informatieanalyse | F9: 5.3.2 Data / Gegevensmanagement | G9: 1.2.2 Innovatiemanagement | H9: Bestuurlijke Informatica | I9: Bachelor Bedrijfskundige Informatica | J9: Architectuur (methoden, modelleer-technieken, tools, modellen, etc.) | K9: TOGAF Practitioner; NORA (geen certificering); MARIJ (geen certificering); basisopleiding architectuur Belastingdienst; DIVA (Defensie), Archimate Foundation & Practitioner | L9: Informatiemanagement | M9: Business Information Management Foundation | T9: Advisering | U9: (Senior) Adviseur | V9: 11-13 | W9: analyseren, creativiteit, netwerken, flexibiliteit, organisatiesensitiviteit, overtuigingskracht, plannen en organiseren | X9: Bedrijfsvoering | Y9: Senior Adviseur Bedrijfsvoering | Z9: 11-13 | AA9: analyseren, creativiteit, netwerken, omgevingsbewustzijn, organisatiesensitiviteit, overtuigingskracht, plannen en organiseren | AG9: Postdoc opleidingen, Zoals IMAC, UVA, TI- AS, ROI, Information Security Foundation based on ISO/IEC 27002, Ontwikkeling Informatiesystemen Foundation, Applicatiemanagement Foundation, ITSM Foundation; ITIL Foundation
B10: 1.2.3 Management Informatievoorziening | D10: 3.1.9 Data Stewardship | E10: 4.3.2 Business Analyse | F10: 5.3.4 Meta Data / Gegevensmanagement | G10: 1.2.3 Management Informatievoorziening | H10: Bestuurlijke informatica, Bestuurlijke in- formatiekunde | I10: Master Bedrijfskundige Informatica, Master Public Information Management | J10: Architectuur (methoden, modelleer-technieken, tools, modellen, etc.) | K10: TOGAF Practitioner; NORA (geen certificering); MARIJ (geen certificering); SCIA, ERIA, basisopleiding architectuur Belasting- dienst; DIVA (Defensie), Archimate Foundation & Practitioner | L10: Informatiemanagement | M10: Business Information Management Foundation | T10: Advisering | U10: (Senior) Adviseur | V10: 11-13 | W10: analyseren, creativiteit, netwerken, flexibiliteit, organisatiesensitiviteit, overtuigingskracht, plannen en organiseren | X10: Bedrijfsvoering | Y10: Senior Adviseur Bedrijfsvoering | Z10: 11-13 | AA10: analyseren, creativiteit, netwerken, omgevingsbewustzijn, organisatiesensitiviteit, overtuigingskracht, plannen en organiseren | AB10: Uitvoering | AC10: Expert I(v) | AD10: 11-13 | AE10: analyseren, creativiteit, netwerken, omgevingsbewustzijn, organisatiesensitiviteit, overtuigingskracht, plannen en organiseren, resultaatgerichtheid | AF10: Het vakgebied Informatievoorziening in een digitale werkomgeving is sterk dynamisch en vernieuwt zichzelf voortdurend door nieuwe innovatieve mogelijkheden die ICT-landschap bieden. Het creëert context voor vernieuwing of verbetering van de informatievoorziening in zowel de bedrijfsprocessen van de organisatie als in de keten. Management van de informatievoorziening dient hier initiatiefvol in te handelen in de vertaling van technologische en maatschappelijke ontwikkelingen en de nieuwe informatiebehoeften die hierdoor ontstaan. Binnen deze context moet management van de Informatievoorziening een duurzaam toegankelijke informatiehuishouding realiseren door de uiteenlopende kaders, normen en eisen systematisch te wegen en af te zetten tegen een huidig en toekomstig gebruik en adequaat te adviseren over de proportionaliteit van te nemen maatregelen. | AG10: Information Security Foundation based on ISO/IEC 27002, Ontwikkeling Informatiesystemen Foundation, Aplicatiemanagement Foundation, ITSM Foundation; ITIL Foundation
B11: 1.3.1 Sourcingmanagement | D11: 3.2.1 Technical Support | E11: 4.3.3 Business Intelligence / Data Analyse | F11: 5.3.5 Recordmanagement | G11: 1.3.1 Sourcingmanagement | H11: Bestuurlijke informatica | I11: Bachelor Bedrijfskundige Informatica | J11: Opleiding Financieel Management van IT | T11: Bedrijfsvoering | U11: Senior Adviseur Bedrijfsvoering | V11: 11-13 | W11: analyseren, creativiteit, netwerken, omgevingsbewustzijn, organisatiesensitiviteit, overtuigingskracht, plannen en organiseren | X11: Uitvoering | Y11: Senior Medewerker Behandelen en Ontwikkelen | Z11: 11-13 | AA11: analyseren, creativiteit, samenwerken, motiveren, bestuurssensitiviteit, overtuigingskracht, plannen en organiseren, klantgerichtheid | AF11: Uitbesteding vindt steeds vaker plaats op basis van resultaatafspraken. De resultaatafspraken kunnen betrekking hebben op vernieuwing of ontwikkeling van applicaties, het beheer van applicaties of zelfs het exploiteren van een geheel rekencentrum. De afspraken kunnen gemaakt worden met al bestaande private partijen of met een gezamenlijk Service Centrum. Regionale of landsgrenzen spelen hierbij vrijwel geen rol meer. Uitbesteding kan direct plaatsvinden of indirect omdat een leverancier zijn werkzaamheden elders laat uitvoeren. Al deze factoren veroorzaken dat sourcing steeds belangrijkere wordt voor organisaties. De sourcingadviseur is specialist wat betreft het vaststellen van de behoeften aan ICT-diensten en het vertalen daarvan naar advies over eisen die aan leveranciers en hun dienstverlening moeten worden gesteld. Daarbij beoordeelt hij/zij – meestal in het kader van structurele outsourcing – welke ICT-activiteiten door een organisatie (beter) zelf kunnen worden uitgevoerd en welke (beter) kunnen worden uitbesteed aan een leverancier van ICT-diensten. Ook de vorm waarin een samenwerking tussen klant en leverancier het beste vorm en inhoud kan worden gegeven, behoort tot de scope van de werkzaamheden van de sourcingadviseur. Vaak wordt de beslissing over al dan niet outsourcen en de contractuele vorm van samenwerking vastgelegd in een sourcingbeleid. | AG11: Informatiesystemen Foundation, Business Information Management Foundation, Information Security Foundation based on ISO/IEC 27002, Contractmanagement CATS CM Foundation
D12: 3.2.2 1E Lijns Gebruikersondersteuning | E12: 4.3.4 Data Science | F12: 5.3.6 Kwaliteitsmanagement Iv | G12: 2.1.1 Applicatieontwikkeling | H12: Professional Developer Scrum | I12: PSD I of vergelijkbare opleiding | J12: SAFe | K12: Leading SAFe | L12: Softwareontwerp | M12: Java Software Designer; Microsoft Certified Solution Developer (etc.) | N12: Methoden en technieken voor Agile ontwerp | O12: RAD/LAD, RUP | P12: Programmeren | Q12: Java; C#; .Net; Visual Basic; SAP/ERP; Oracle; Groupware/Lotus Notes; Powerbuilder/Sybase; Cobol/Cics/DB2; Cool Gen, Ruby on Rails | R12: Testen | S12: Tmap Next Foundation | T12: Bedrijfsvoering | U12: Adviseur Bedrijfsvoering | V12: 8-11 | W12: analyseren, klantgerichtheid, omgevingsbewustzijn, plannen en organiseren, samenwerken, voortgangscontrole, zelfontwikkeling | X12: Uitvoering | Y12: Senior Medewerker I(v) | Z12: 8-11 | AA12: analyseren, klantgerichtheid, omgevingsbewustzijn, plannen en organiseren, resultaatgerichtheid, samenwerken, voortgangscontrole, zelfontwikkeling | AF12: Applicatieontwikkeling vindt tegenwoordig op een andere manier plaats dan een aantal jaren geleden. Geen enkel systeem wordt meer van de grond af aan geprogrammeerd. De meeste nieuwe systemen zijn opgebouwd uit bouwstenen of zijn standaardapplicaties waarvan de parameters zodanig zijn ingesteld dat de standaardapplicatie geschikt wordt gemaakt voor een specifieke situatie. De manier van technisch ontwerpen en applicatieontwikkeling is hierop aangepast. Voorts is er een sterke specialisatie rond de te gebruiken technologie. Als afzonderlijke deskundigheid is het gebruik van open software toegevoegd. Veel gebruikte methodieken bij ontwikkelen van softwaresystemen zijn Agile Scrum, Agile XP en SAFe, waarbij de ontwikkelaars in toenemende mate gaan uitmaken van DevOps teams. In dat laatste geval zal kennis van continuous delivery en continuous integration opgedaan moeten worden. | AG12: Ontwikkeling informatiesystemen Foundation; Object Oriëntatie Foundation, Applicatiemanagement Foundation (ASL), IT Foundation; A+ Essentials
D13: 3.2.3 Incidentmanagement | E13: 4.4.1 Informatiecoaching | F13: 5.4.1 It-Control | G13: 2.1.2 Systeemontwikkeling | H13: Service Design | I13: Professional ITSM Delivery of IT Services; ITIL Service Transition | T13: Bedrijfsvoering | U13: Adviseur Bedrijfsvoering | V13: 8-11 | W13: analyseren, klantgerichtheid, omgevingsbewustzijn, plannen en organiseren, samenwerken, voortgangscontrole, zelfontwikkeling | X13: Uitvoering | Y13: Senior Medewerker I(v) | Z13: 8-11 | AA13: analyseren, klantgerichtheid, omgevingsbewustzijn, plannen en organiseren, resultaatgerichtheid, samenwerken, voortgangscontrole, zelfontwikkeling | AF13: Systeem ontwikkelaar of Systeem engineer is meestal een bouwer (en ontwerper) van technische systemen (embedded software). Het is in die zin een combinatie van de functie van technisch ontwerper en programmeur, met als specialisatie technische systemen. | AG13: Ontwerp en Ontwikkeling Informatiesystemen Foundation, Testen Foundation, IT Foundation; A+ Essentials, Applicatiemanagement Foundation, Information Security Foundation
D14: 3.2.4 Problemmanagement | E14: 4.4.2 Leer- Ontwikkelmanagement | G14: 2.1.3 Netwerkontwikkeling | H14: Service Design | I14: Professional ITSM Delivery of IT Services; ITIL Service Transition | T14: Bedrijfsvoering | U14: Adviseur Bedrijfsvoering | V14: 8-11 | W14: analyseren, klantgerichtheid, omgevingsbewustzijn, plannen en organiseren, samenwerken, voortgangscontrole, zelfontwikkeling | X14: Uitvoering | Y14: Senior Medewerker I(v) | Z14: 8-11 | AA14: analyseren, klantgerichtheid, omgevingsbewustzijn, plannen en organiseren, resultaatgerichtheid, samenwerken, voortgangscontrole, zelfontwikkeling | AF14: De netwerk ontwikkelaar of netwerk engineer ontwerpt en configureert het netwerk (interne/LAN en de koppelingen met externe WAN-netwerken). De netwerk engineer selecteert de componenten van het netwerk (netwerkapparatuur en besturings-, beheer- en netwerkprogrammatuur) en stuurt de installatie en het beheer van deze componenten aan. | AG14: Informatiesystemen Foundation, Ontwerp en Ontwikkeling Informatiesystemen Foundation, IT Foundation; A+ Essentials, Applicatiemanagement Foundation, Information Security Foundation
D15: 3.3.1 Service Level Management | E15: 4.4.3 (Agile) Coaching | G15: 2.1.4 Data Engineering | H15: Programmeren | I15: SQL, SAS, Teradata, C, R, Java en LSF | J15: Data Management Body of Knowledge | K15: DMBOK | T15: Bedrijfsvoering | U15: Adviseur Bedrijfsvoering | V15: 8-11 | W15: analyseren, klantgerichtheid, omgevingsbewustzijn, plannen en organiseren, samenwerken, voortgangscontrole, zelfontwikkeling | X15: Uitvoering | Y15: Senior Medewerker I(v) | Z15: 8-11 | AA15: analyseren, klantgerichtheid, omgevingsbewustzijn, plannen en organiseren, resultaatgerichtheid, samenwerken, voortgangscontrole, zelfontwikkeling | AF15: De data engineer heeft niet alleen ervaring met grote data volumes, verschillende dataformaten en uitwisseling van gegevens tussen diverse systemen (ETL), maar ook ervaring met relationele datastructuren. Daarnaast lost de data engineer op zijn tijd productie-issues op en neem hij regelmatig deel aan projecten voor productontwikkeling. De meest gebruikte methodiek bij ontwikkelen van softwaresystemen is Agile Scrum (SAFe). | AG15: Java Software Designer; Microsoft Certified Solution Developer (etc.), RAD/LAD, RUP, Analyzing Data with Power BI, Analyzing Data with SQL Server Reporting Services, Python Fundamentals / Advanced,
D16: 3.3.2 Capacitymanagement | E16: 4.5.1 Product Owner | G16: 2.2.1 Testmanagement | H16: Test Management | I16: Testen Professional; TMap NEXT Advanced; ISTQB Advanced | J16: Testorganisatie en -uitvoering | K16: TMap NEXT Foundation, TMap next in Scrum | T16: Bedrijfsvoering | U16: Adviseur Bedrijfsvoering | V16: 8-11 | W16: analyseren, klantgerichtheid, omgevingsbewustzijn, plannen en organiseren, samenwerken, voortgangscontrole, zelfontwikkeling | X16: Uitvoering | Y16: Senior Medewerker I(v) | Z16: 8-11 | AA16: analyseren, klantgerichtheid, omgevingsbewustzijn, plannen en organiseren, resultaatgerichtheid, samenwerken, voortgangscontrole, zelfontwikkeling | AF16: Veel nieuwe systemen zijn momenteel opgebouwd uit bouwstenen of zijn standaardapplicaties waarvan de parameters zodanig zijn ingesteld dat de standaardapplicatie geschikt wordt gemaakt voor een specifieke situatie. De betrokkenheid van (eind)gebruikers en de wijze van testen zijn hierop aangepast. Daarnaast is door de invoering van Agile Scrum en Test Driven Development veel meer de nadruk komen te liggen op zoveel mogelijk geautomatiseerde testen door de systemen zelf. De laatste ontwikkelingen in testmanagement liggen op de vlak van testengineering. | AG16: Testen Foundation; ISTQB Foundation, IT Foundation; A+ Essentials, Informatiesystemen Foundation, Projectmanagement Foundation; PRINCE2 Foundation, Applicatiemanagement Foundation, Ontwerp en Ontwikkeling Informatiesystemen Foundation; Object Oriëntatie Foundation
D17: 3.3.3 Configuration Management | E17: 4.5.2 Product Manager | G17: 3.1.1 Systeembeheer | H17: Systeembeheer | I17: Server+; Linux+; MCITP; Jenkins; Gitlab | J17: Service Control | K17: Professional ITSM Control of IT Services; ITIL Service Transition | T17: Bedrijfsvoering | U17: Adviseur Bedrijfsvoering | V17: 8-11 | W17: analyseren, klantgerichtheid, omgevingsbewustzijn, plannen en organiseren, samenwerken, voortgangscontrole, zelfontwikkeling | X17: Uitvoering | Y17: Senior Medewerker I(v) | Z17: 8-11 | AA17: analyseren, klantgerichtheid, omgevingsbewustzijn, plannen en organiseren, resultaatgerichtheid, samenwerken, voortgangscontrole, zelfontwikkeling | AF17: Systeembeheerder is een algemene functietitel voor een beheerder van servers en netwerken. In grote organisaties is vaak een verbijzondering doorgevoerd naar serverbeheerder en netwerkbeheerder. De titel wordt ook wel toegekend aan een technisch beheerder van een systeem, zijnde een applicatie of de combinatie van een of meerdere applicaties en de servers waarop die draaien. Incidenten en changes kunnen grote gevolgen hebben voor de continuïteit van systemen en daarmee voor de continuïteit van- en de beeldvorming over de organisatie. Systeembeheer moet in dergelijke situaties onder druk nauwkeurig en volgens de voorgeschreven procedures kunnen werken. De laatste tijd worden ontwikkelaar en beheers vaker samengevoegd in DevOps team. In dat geval zal kennis van continuous delivery en continuous integration opgedaan moeten worden. | AG17: ITSM Foundation; ITIL Foundation, IT Foundation; A+ Essentials, Infrastructuurmanagement Foundation, Information Security Foundation
D18: 3.3.4 Release Management | E18: 4.5.3 (Gedelegeerd) Business Owner | G18: 3.1.2 Changemanagement | H18: Service Control | I18: Professional ITSM Support of IT Services; ITIL Service Transition | T18: Bedrijfsvoering | U18: Adviseur Bedrijfsvoering | V18: 8-11 | X18: Uitvoering | Y18: Senior Medewerker I(v) | Z18: 8-11 | AF18: De changemanager is verantwoordelijk voor het beheer en gecoördineerd invoeren van wijzigingen in de ICT-omgeving; daarmee moet worden geborgd dat wijzigingen zonder merkbare of onacceptabele gevolgen voor gebruikers worden ingevoerd en dat de continuïteit van de informatievoorziening niet in gevaar komt. Changes (wijzigingen) in de ICT-omgeving kunnen betrekking hebben op informatiesystemen of applicaties en/of de technische infrastructuur (netwerk, servers., storage). | AG18: ITSM Foundation; ITIL Foundation, Projectmanagement Foundation; PRINCE2 Foundation, IT Foundation; A+ Essentials, Informatiesystemen Foundation, Applicatiemanagement Foundation,Information Security Foundation
G19: 3.1.3 Functioneel Beheer | H19: Functioneel beheer | I19: Professional Functioneel Beheerder | T19: Bedrijfsvoering | U19: Adviseur Bedrijfsvoering | V19: 8-11 | W19: analyseren, klantgerichtheid, omgevingsbewustzijn, plannen en organiseren, samenwerken, voortgangscontrole, zelfontwikkeling | X19: Uitvoering | Y19: Senior Medewerker I(v) | Z19: 8-11 | AA19: analyseren, klantgerichtheid, omgevingsbewustzijn, plannen en organiseren, resultaatgerichtheid, samenwerken, voortgangscontrole, zelfontwikkeling | AF19: De functioneel beheerder is primair verantwoordelijk dat een informatiesysteem voldoet aan de eisen van de gebruikers, daaraan blijft voldoen en bovendien dat de functionaliteit consistent is. De functioneel beheerder werkt nauw samen met gebruikers voor het evalueren van de functionele specificaties van een informatiesysteem en het uitwerken van de functionele specificaties bij gewenste wijzigingen in de functionaliteit. Gerealiseerde wijzigingen worden door de functioneel beheerder getest in een acceptatietest. De functioneel beheerder coördineert de invoering van wijzigingen in de gebruikersorganisatie. Daarnaast is de functioneel beheerder een vraagbaak voor gebruikers (in de tweede lijn) en coördineert het oplossen van problemen. | AG19: Business Information Management Foundation, Informatiesystemen Foundation, Testen Foundation, ITSM Foundation; ITIL Foundation, Information Security Foundation based on ISO/IEC 27002
G20: 3.1.4 Serverbeheer | H20: Systeembeheer | I20: Server+; Linux+; MCITP | J20: Service Control | K20: Professional ITSM Control of IT Services; ITIL Service Transition | T20: Bedrijfsvoering | U20: Adviseur Bedrijfsvoering | V20: 8-11 | W20: analyseren, klantgerichtheid, omgevingsbewustzijn, plannen en organiseren, samenwerken, voortgangscontrole, zelfontwikkeling | X20: Uitvoering | Y20: Senior Medewerker I(v) | Z20: 8-11 | AA20: analyseren, klantgerichtheid, omgevingsbewustzijn, plannen en organiseren, resultaatgerichtheid, samenwerken, voortgangscontrole, zelfontwikkeling | AF20: Serverbeheer is een technische beheerfunctie en heeft primair tot taak om servers aan de gestelde eisen of prestatiekenmerken te laten voldoen. Vaak is de serverbeheerder betrokken bij de configuratie van een server en installeert en configureert de wijzigingen. De serverbeheerder monitort de werking van servers (vaak met specifieke tooling) en neemt reactie of preventief maatregelen om een server aan de gestelde eisen te laten voldoen. Bij storingen in server is de serverbeheerder opgelost. | AG20: ITSM Foundation; ITIL Foundation, IT Foundation; A+ Essentials, Infrastructuurmanagement Foundation, Information Security Foundation
G21: 3.1.5 Netwerkbeheer | H21: Systeembeheer | I21: Server+; Linux+; MCITP; ASE-Network Infrastructure | J21: Service Control | K21: Professional ITSM Control of IT Services; ITIL Service Transition | T21: Bedrijfsvoering | U21: Adviseur Bedrijfsvoering | V21: 8-11 | W21: analyseren, klantgerichtheid, omgevingsbewustzijn, plannen en organiseren, samenwerken, voortgangscontrole, zelfontwikkeling | X21: Uitvoering | Y21: Senior Medewerker I(v) | Z21: 8-11 | AA21: analyseren, klantgerichtheid, omgevingsbewustzijn, plannen en organiseren, resultaatgerichtheid, samenwerken, voortgangscontrole, zelfontwikkeling | AF21: Netwerkbeheer is een technische beheerfunctie en heeft primair tot taak om een netwerk aan de gestelde eisen of prestatiekenmerken te laten voldoen. Vaak is de netwerkbeheerder betrokken bij het ontwerp van een netwerk en installeert en configureert (wijzigingen) in netwerkcomponenten. De netwerkbeheerder monitort de werking van een netwerk (vaak met specifieke monitoringtools) en neemt reactief of preventief maatregelen om het netwerk aan de gestelde eisen te laten voldoen. Bij storingen in het netwerk worden deze door de netwerkbeheerder opgelost. | AG21: ITSM Foundation; ITIL Foundation, IT Foundation; A+ Essentials, Infrastructuurmanagement Foundation, Information Security Foundation
G22: 3.1.6 Applicatiebeheer | H22: Applicatiebeheer | I22: Professional ITSM Control of IT Services; ITIL Service Transition | J22: Programmeren | K22: Oracle Certified Professional; Microsoft Certified Program Developer | T22: Bedrijfsvoering | U22: Adviseur Bedrijfsvoering | V22: 8-11 | W22: analyseren, klantgerichtheid, omgevingsbewustzijn, plannen en organiseren, samenwerken, voortgangscontrole, zelfontwikkeling | X22: Uitvoering | Y22: Senior Medewerker I(v) | Z22: 8-11 | AA22: analyseren, klantgerichtheid, omgevingsbewustzijn, plannen en organiseren, resultaatgerichtheid, samenwerken, voortgangscontrole, zelfontwikkeling | AF22: De applicatiebeheerder is primair verantwoordelijk dat een applicatie aan de overeengekomen prestatiekenmerken (performance, bedrijfszekerheid,) blijft voldoen. De applicatiebeheerder werkt vaak samen met een DBA en/of serverbeheerder. De applicatiebeheerder stuurt de realisatie van gewenste wijzigingen door een programmeur of DBA aan en coördineert de (technische) implementatie van de wijziging in de productieomgeving. Vaak is de applicatiebeheerder – in de tweede lijn – betrokken bij het oplossen van incidenten en problemen die ontstaan zijn door een technische reden. | AG22: Ontwerp en Ontwikkeling Informatiesyste- men Foundation; RAD/LAD; XML/UML; XBRL, HTML, ASP, SOAP, XML, XSL-T, XPath,, DOM, XML Schema’s, Databases en SQL Foundation, IT Foundation; A+ Essentials, Informatiesystemen Foundation, Testen Foundation; TMapNext Foundation; ISTQB Certified Tester Foundation Level, Applicatiemanagement Foundation, ITSM Foundation; ITIL Foundation
G23: 3.1.7 Databasebeheer | H23: Database Administration | I23: MCDBA | J23: Datawarehouse | K23: Certified Data Centre Expert, Professional, Specialist | T23: Bedrijfsvoering | U23: Adviseur Bedrijfsvoering | V23: 8-11 | W23: analyseren, klantgerichtheid, omgevingsbewustzijn, plannen en organiseren, samenwerken, voortgangscontrole, zelfontwikkeling | X23: Uitvoering | Y23: Senior Medewerker I(v) | Z23: 8-11 | AA23: analyseren, klantgerichtheid, omgevingsbewustzijn, plannen en organiseren, resultaatgerichtheid, samenwerken, voortgangscontrole, zelfontwikkeling | AF23: De databasebeheerder draagt zorg voor de kwaliteit, actualiteit, volledigheid en consistentie van gegevens in een database. De databasebeheer (i.t.t. datamanager) is operationeel verantwoordelijk voor gegevens (eventueel benoemd per database). De databasebeheerder stelt vaak het gegevensmodel voor een applicatie op in samenwerking met een informatieanalist of architect en beheert dat model inclusief de regels die moeten worden geborgd om de gegevens actueel, consistent, enzovoort te houden. De databasebeheerder verifieert de productieresultaten (op het aspect gegevensconsistentie en – correctheid) en voert periodieke analyses uit op de kwaliteit van de gegevens. | AG23: Databases en QSL Foundation, Ontwerp en Ontwikkeling Informatiesystemen Foundation, IT Foundation; A+ Essentials, Informatiesystemen Foundation, Applicatiemanagement Foundation, Information Security Foundation
G24: 3.1.8 Recordbeheer | H24: Archief- en informatiewetgeving; ordenings- en ontsluitingsmethodieken; zoek- technieken | I24: SOD I, SOD II, MBO Informatiedienst verlening, HMDI | T24: Bedrijfsvoering | U24: Adviseur Bedrijfsvoering | V24: 8-9 | W24: analyseren, klantgerichtheid, omgevingsbewustzijn, plannen en organiseren, samenwerken, voortgangscontrole, zelfontwikkeling | X24: Uitvoering | Y24: Medewerker I(v) | Z24: 8-9 | AA24: analyseren, klantgerichtheid, omgevingsbewustzijn, plannen en organiseren, resultaatgerichtheid, samenwerken, voortgangscontrole, zelfontwikkeling | AF24: De verregaande digitalisering van de werkprocessen biedt mogelijkheden om binnen de organisatie efficiënter en effectiever te werken en daarmee zowel de interne als de externe omgeving beter te bedienen. Deze transitie bij de overheid naar digitaal werken levert de uitdaging op hoe we digitale overheidsinformatie zo kunnen bewaren en beheren dat deze in de tijd gezien beschikbaar, toegankelijk, leesbaar en bruikbaar blijft. Binnen de algehele informatievoorziening van de organisatie zien we in werkprocessen informatieverwerking en -bewerking, gericht op inhoud en het wijzigen van inhoud, met daar tegenover informatiebeheer (recordbeheer). Recordbeheer dient, binnen dit brede aandachtsgebied, een aantal deelaspecten zoals gebruikersondersteuning, ontsluiting, archivering, vernietiging, overbrenging en een overkoepelende integrale kwaliteitszorg gericht op de bedrijfsinformatie. Onder bedrijfsinformatie verstaan we alle informatie die wordt gebruikt of beschikbaar komt in werkprocessen die overheidsorganisaties in het kader van hun taakstelling uitvoeren en dient verantwoording en bedrijfsvoering, de burgers in het kader van dienstverlening en het publiek in het kader van openbaarmaking van overheidsinformatie. De aandachtsgebieden vullen elkaar aan en hebben elkaar nodig. Recordbeheer vervult een belangrijke ondersteunende en stimulerende rol waarbij continuïteit van dienstverlening van groot belang is. Draagt zorg voor kwalitatieve intake, formele ontsluiting, distributie en archivering van de gekanaliseerde inkomende poststromen. Monitort de eenduidigheid en juistheid van de metagegevenssets op zaak, proces en documentniveau en signaleert tijdig de afwijkingen en de noodzakelijk herstelbewerkingen hierop. Recordbeheer onderhoudt hiertoe veelvuldig contact met zaakhouders/(mede)behandelaren teneinde de informatiebehoeften zo goed mogelijk af te stemmen en informatieprocessen bij het organisatieonderdeel beter te laten verlopen. | AG24: Informatiesystemen Foundation
G25: 3.1.9 Data Stewardship | T25: Bedrijfsvoering | U25: Adviseur Bedrijfsvoering | V25: 8-11 | W25: analyseren, klantgerichtheid, omgevingsbewustzijn, plannen en organiseren, samenwerken, voortgangscontrole, zelfontwikkeling | X25: Uitvoering | Y25: Senior Medewerker I(v) | Z25: 8-11 | AA25: analyseren, klantgerichtheid, omgevingsbewustzijn, plannen en organiseren, resultaatgerichtheid, samenwerken, voortgangscontrole, zelfontwikkeling | AF25: Het jonge vakgebied van een data steward houdt zich voornamelijk bezig de klant/ business te ondersteunen in het onderhouden en creëren van data met een hoge kwaliteit. Het komt erop neer dat de data steward de kwaliteit van de data definieert, meet en verbetert in een continu proces, bijvoorbeeld conform criteria voor juistheid, compleetheid of actualiteit (vanuit business perspectief). Hier valt ook onder het correcte formaat en de correcte betekenis (vanuit vorm, perspectief, conform gegevensdefinitie).
G26: 3.2.1 Technical Support | H26: Systeembeheer | I26: Server+; Linux+; MCITP | J26: Service Delivery | K26: Professional ITSM Delivery of IT Services | T26: Bedrijfsvoering | U26: Adviseur Bedrijfsvoering | V26: 8-11 | W26: analyseren, klantgerichtheid, omgevingsbewustzijn, plannen en organiseren, samenwerken, voortgangscontrole, zelfontwikkeling | X26: Uitvoering | Y26: Senior Medewerker I(v) | Z26: 8-11 | AA26: analyseren, klantgerichtheid, omgevingsbewustzijn, plannen en organiseren, resultaatgerichtheid, samenwerken, voortgangscontrole, zelfontwikkeling | AF26: Technical support betreft een zware inhoudelijke rol. Technical support is in staat om het totaal van een vraagstuk te kunnen overzien. Breedte (overzicht) en diepte (specialistische deskundigheid) op enkele terreinen zijn hierbij van belang. Waar actuele kennis te kort schiet is Technical Support in staat zich nieuwe materie snel eigen te maken. Vaak is technisch support in de tweede lijn betrokken bij het oplossen van incidenten en problemen die ontstaan zijn door een technische reden. | AG26: ITSM Foundation; ITIL Foundation, Projectmanagement Foundation; PRINCE2 Foundation, IT Foundation; A+ Essentials, Informatiesystemen Foundation, Applicatiemanagement Foundation, Databases en SQL Foundation, Ontwerp en Ontwikkeling Informatiesystemen Foundation, Functioneel Beheer Foundation, Information Security Foundation, Europees Computer Rijbewijs
G27: 3.2.2 1E Lijns Gebruikersondersteuning | H27: Servicemanagement | I27: ITSM Foundation; ITIL Foundation | T27: Bedrijfsvoering | U27: Medewerker ICT/Techniek/Beheer/DIV | V27: 5-8 | W27: luisteren, klantgerichtheid, analyseren, initiatief, integriteit, accuraat werken, zelfontwikkeling | X27: Uitvoering | Y27: Medewerker Verwerken en Behandelen | Z27: 3-8 | AA27: flexibiliteit; klantgerichtheid, mondelinge uitdrukkingsvaardigheid; resultaatgerichtheid, samenwerken, schriftelijke uitdrukkingsvaardigheid, stressbestendigheid | AF27: De 1e lijns medewerker gebruikersondersteuning (servicedesk/helpdesk) geeft – meestal telefonisch, maar ook via email – ondersteuning aan gebruikers die vragen hebben en is het 1e aanspreekpunt bij het oplossen van storingen, problemen enzovoort in de informatievoorziening. De 1e lijns medewerker registreert de vragen of meldingen van incidenten en biedt ook vaak oplossingen hiervoor. Lukt dat niet, wordt de het incident doorgezet nar de tweede lijn (Technisch support, applicatiebeheer etc..), maar de coördinatie blijft bij de 1e lijns medewerker en bewaakt dat een incident conform de SLA wordt afgehandeld. Bij een service/helpdesk kunnen veel meer taken worden belegd, al naar gelang de grootte van de organisatie. Dat kan bijvoorbeeld zijn het identificeren van problemen, het coördineren van wijzigingen, het registreren van gebruikers, het instellen van autorisaties, enzovoort. | AG27: IT Foundation; A+ Essentials, Informatiesystemen Foundation, Europees Computer Rijbewijs
G28: 3.2.3 Incidentmanagement | H28: Service Support | I28: Professional ITSM Support of IT Services | T28: Bedrijfsvoering | U28: Adviseur Bedrijfsvoering | V28: 8-11 | W28: analyseren, klantgerichtheid, omgevingsbewustzijn, plannen en organiseren, samenwerken, voortgangscontrole, zelfontwikkeling | X28: Uitvoering | Y28: Senior Medewerker I(v) | Z28: 8-11 | AA28: analyseren, klantgerichtheid, omgevingsbewustzijn, plannen en organiseren, resultaatgerichtheid, samenwerken, voortgangscontrole, zelfontwikkeling | AF28: De incidentmanager is verantwoordelijk voor het oplossen van verstoringen en problemen met de informatievoorziening, zowel in informatiesystemen of applicaties als in de technische infrastructuur. Deze functie is afgeleid van het ITIL proces incidentmanagement. Het kan zowel een management/proces functie zijn als een operationele functie. | AG28: ITSM Foundation; ITIL Foundation, IT Foundation; A+ Essentials, Informatiesystemen Foundation, Applicatiemanagement Foundation, Information Security Foundation
G29: 3.2.4 Problemmanagement | H29: Service Support | I29: Professional ITSM Support of IT Services; ITIL Operational Support and Analysis | J29: Service Design | K29: Professional ITSM Delivery of IT Services; ITIL Service Design | T29: Bedrijfsvoering | U29: Adviseur Bedrijfsvoering | V29: 8-11 | W29: analyseren, klantgerichtheid, omgevingsbewustzijn, plannen en organiseren, samenwerken, voortgangscontrole, zelfontwikkeling | X29: Uitvoering | Y29: Senior Medewerker I(v) | Z29: 8-11 | AA29: analyseren, klantgerichtheid, omgevingsbewustzijn, plannen en organiseren, resultaatgerichtheid, samenwerken, voortgangscontrole, zelfontwikkeling | AF29: De problemmanager is, in de rol van coördinator, verantwoordelijk voor het oplossen van verstoringen en problemen met de informatievoorziening, zowel in informatiesystemen/ applicaties als in de technische infrastructuur. Deze functie is afgeleid van het ITIL proces ‘problemmanagement’. De problemmanager komt in actie wanneer het incidentmanagement proces niet tot de juiste oplossing heeft geleid of een structurele oplossing moet worden gerealiseerd nadat in het kader van incidentmanagement een work-around is geïmplementeerd of geboden. | AG29: ITSM Foundation; ITIL Foundation, IT Foundation; A+ Essentials, Informatiesystemen Foundation, Applicatiemanagement Foundation, Information Security Foundation
G30: 3.3.1 Service Level Management | H30: Service Alignment | I30: Professional ITSM Alignment of IT and the Business (ISO 20000); ITIL Service Design; ITIL Service Offerings and Agreements | T30: Bedrijfsvoering | U30: Senior Adviseur Bedrijfsvoering | V30: 11-13 | W30: analyseren, creativiteit, netwerken, omgevingsbewustzijn, organisatiesensitiviteit, overtuigingskracht, plannen en organiseren | X30: Uitvoering | Y30: Senior Medewerker Behandelen en Ontwikkelen | Z30: 11-14 | AA30: analyseren, creativiteit, netwerken, omgevingsbewustzijn, organisatiesensitiviteit, overtuigingskracht, plannen en organiseren, resultaatgerichtheid | AF30: De service level manager is verantwoordelijk voor het beheer van de met gebruikers of klanten overeengekomen dienstverlening (meestal vastgelegd in SLA’s). Daarvoor wordt met gebruikers en lijnmanagement afgestemd over de behoeften aan producten en diensten en de eisen die daar worden gesteld; de vastlegging daarvan in de SLA’s; het toezicht op de levering van de overeengekomen diensten en het beheer van de SLA’s. Met de leverancier wordt afgestemd over de mogelijkheden, de kosten van levering en eventuele specifieke condities die aan levering worden gesteld. De functie van service level manager is ontstaan vanuit ITIL, waarbij de interne automatiseringsafdeling SLA’s ging afsluiten met de gebruikersafdelingen. Vervolgens werden ook met de externe leveranciers SLA’s afgesloten. Door de scheiding in vraag en aanbod in de Informatievoorziening neemt de druk op realisatie van- en daarmee de noodzaak van een consequente sturing op overeengekomen en realistische SLA’s toe. De service level manager bewaakt proactief of de daadwerkelijk geboden dienstverlening conform de SLA wordt uitgevoerd. Het is van belang dat Service Level Management binnen de IT-organisatie niet de rol van het ‘oliemannetje’ gaat vervullen en zelf de vraagstukken van klanten tracht op te lossen. Het is cruciaal dat Service Level Management afstand kan nemen van de dagelijkse ‘waan van de dag’ en patronen in problemen kan onderscheiden en binnen de IT-organisatie de maatregelen treft ter oplossing en voorkoming daarvan. | AG30: ITSM Foundation; ITIL Foundation, Projectmanagement Foundation; PRINCE2 Foundation, Information Security Foundation based on ISO/IEC 27002
G31: 3.3.2 Capacitymanagement | H31: Service Design | I31: Professional ITSM Delivery of IT Services; ITIL Service Design; ITIL Planning Protection and Optimization | T31: Bedrijfsvoering | U31: Adviseur Bedrijfsvoering | V31: 8-11 | W31: analyseren, klantgerichtheid, omgevingsbewustzijn, plannen en organiseren, samenwerken, voortgangscontrole, zelfontwikkeling | X31: Uitvoering | Y31: Senior Medewerker I(v) | Z31: 8-11 | AA31: analyseren, klantgerichtheid, omgevingsbewustzijn, plannen en organiseren, resultaatgerichtheid, samenwerken, voortgangscontrole, zelfontwikkeling | AF31: Capaciteitsmanagement is erop gericht om de vraag naar en het aanbod van capaciteit (storage) op optimale wijze op elkaar af te stemmen. In het geval van de keten worden van tevoren met ketenpartners afspraken gemaakt over de capaciteit die zij ten behoeve van de keten beschikbaar moeten hebben. | AG31: ITSM Foundation; ITIL Foundation, IT Foundation; A+ Essentials, Informatiesystemen Foundation
G32: 3.3.3 Configuration Management | H32: Service Control | I32: Professional ITSM Control of IT Services; ITIL Service Transition; ITIL Release Con- trol and Validation; Practitioner Software Asset Management | T32: Bedrijfsvoering | U32: Adviseur Bedrijfsvoering | V32: 8-11 | W32: analyseren, klantgerichtheid, omgevingsbewustzijn, plannen en organiseren, samenwerken, voortgangscontrole, zelfontwikkeling | X32: Uitvoering | Y32: Senior Medewerker I(v) | Z32: 8-11 | AA32: analyseren, klantgerichtheid, omgevingsbewustzijn, plannen en organiseren, resultaatgerichtheid, samenwerken, voortgangscontrole, zelfontwikkeling | AF32: De functie van is afgeleid van het ITIL proces ‘configuratiemanagement’. De configuratiemanager is meer een operationeel beheerde van de configuratiedatabase. Hij identificeert en classificeert de zogenoemde ‘configuratie-items’en legt deze - al dan niet zelf – vast in de configuratiedatabase. Als gevolg van de tendens tot concentratie van rekencentra en dus grotere mainframeomgevingen, evenals de noodzaak van een zeer zorgvuldig licentiebeheer, neemt de druk op de kwaliteit van het configuratiemanagement toe. Configuratiemanagement heeft dus een belangrijke taak in de op- en verdere uitbouw van het configuratieproces en vervult hierin een actieve ‘voortrekkersrol’. | AG32: ITSM Foundation; ITIL Foundation, IT Foundation; A+ Essentials, Informatiesystemen Foundation, Applicatiemanagement Foundation, Information Security Foundation
G33: 3.3.4 Release Management | H33: Service Control | I33: Professional ITSM Control of IT Services; ITIL Service Transition; ITIL Release Con- trol and Validation | T33: Bedrijfsvoering | U33: Adviseur Bedrijfsvoering | V33: 8-11 | W33: analyseren, klantgerichtheid, omgevingsbewustzijn, plannen en organiseren, samenwerken, voortgangscontrole, zelfontwikkeling | X33: Uitvoering | Y33: Senior Medewerker I(v) | Z33: 8-11 | AA33: analyseren, klantgerichtheid, omgevingsbewustzijn, plannen en organiseren, resultaatgerichtheid, samenwerken, voortgangscontrole, zelfontwikkeling | AF33: De releasemanager is verantwoordelijk voor het samenstellen en invoeren van releases (versies) van informatiesystemen. Niet alleen de afstemming van releases op de businesseisen (zoals invoerings- en beschikbaarheidsdata) is van belang maar ook het bewaken dat releases zonder problemen voor de continuïteit en consistentie van de informatievoorziening en de bedrijfsvoering plaatsvinden. | AG33: ITSM Foundation; ITIL Foundation, IT Foundation; A+ Essentials, Informatiesystemen Foundation
G34: 4.1.1 Securitymanagement | H34: Informatiebeveiligingsbeleid | I34: Information Security Expert (ISO 27001/2), VIR en VIRBI (geen certificering), A en K analyses (geen certificering) | J34: Informatiebeveiliging | K34: Information Security Foundation (ISO 27001/2), Information Security Advanced (ISO 27001/2), Information Systems Security Management Professional | L34: CISM / CISP | M34: Certified Information Security Management, Certified Information Security Professional | T34: Bedrijfsvoering | U34: Adviseur Bedrijfsvoering | V34: 11-13 | W34: analyseren, creativiteit, netwerken, omgevingsbewustzijn, organisatiesensitiviteit, overtuigingskracht, plannen en organiseren | X34: Uitvoering | Y34: Expert I(v) | Z34: 11-13 | AA34: analyseren, creativiteit, netwerken, flexibiliteit, organisatiesensitiviteit, overtuigingskracht, plannen en organiseren | AF34: ICT security/securitymanagement (informatiebeveiliging) omvat het ontwerpen, implementeren, onderhouden en evalueren van beveiligingsmaatregelen met betrekking tot de ICT (hardware en software). De security officer (of BVA) is verantwoordelijk voor de beveiliging van de informatievoorziening/ICT. De focus ligt op het beveiligen van de informatievoorziening/ICT wat betreft de vertrouwelijkheid, de integriteit en de beschikbaarheid van informatie. | AG34: Business Information Management Foundation
G35: 4.1.2 Informatie Risicomanagement | H35: Risicomanagement | I35: Management of Risks (M_o_R) Foundation / Practitioner | T35: Advisering | U35: (Senior) Adviseur | V35: 11-13 | W35: analyseren, creativiteit, netwerken, flexibiliteit, organisatiesensitiviteit, overtuigingskracht, plannen en organiseren | X35: Bedrijfsvoering | Y35: Senior Adviseur Bedrijfsvoering | Z35: 11-13 | AA35: analyseren, creativiteit, netwerken, omgevingsbewustzijn, organisatiesensitiviteit, overtuigingskracht, plannen en organiseren | AF35: De risicomanager is primair verantwoordelijk voor het identificeren en mitigeren van risico’s die zijn verbonden aan de beschikbaarstelling en het gebruik van componenten van de informatievoorziening, zoals netwerken, servers, informatiesystemen, of applicaties, enzovoort. Meestal is de scope van de verantwoordelijkheden beperkt tot de informatievoorziening, maar soms wordt deze functie ook ingezet voor het identificeren en mitigeren van risico’s in programma’s of projecten. In vele gevallen levert de risicomanager een bijdrage aan het beleid en de richtlijnen voor risicomanagement. Daarnaast stelt hij ook concrete risicobeheersmaatregelen op en/of toets hij de gewenste werking. | AG35: Business Information Management Foundation, Information Security Foundation based on ISO/IEC 27002, Prince2 Foundation; Managing Successful Programs Practitioner, IT Management Foundation; Professional Management and Improvement of IT Service Management processes
G36: 4.1.3 Cyber Securitymanagement | H36: Informatica | I36: HBO / WO Informatica | T36: Bedrijfsvoering | U36: Senior Adviseur Bedrijfsvoering | V36: 11-13 | W36: analyseren, creativiteit, netwerken, omgevingsbewustzijn, organisatiesensitiviteit, overtuigingskracht, plannen en organiseren | X36: Uitvoering | Y36: Expert I(v) | Z36: 11-13 | AA36: analyseren, creativiteit, netwerken, flexibiliteit, organisatiesensitiviteit, overtuigingskracht, plannen en organiseren | AF36: Cybersecurity is een relatief jong vakgebied wat volop in ontwikkeling is. Over het algemeen zijn cybersecurity analisten belast met het proactief detecteren van kwetsbaarheden en dreigingen en het nemen van maatregelen om gevolgen van onbekende dreigingen te voorkomen en/of te mitigeren. Daarnaast worden cybersecurity specialisten ingezet op diepgaande analyses en forensisch onderzoek van eventueel besmette en gecompromitteerde systemen. De Cybersecurityspecialist moet als het ware in de huid van een hacker kunnen kruipen. | AG36: TCP/IP, UDP, DNS. DHCP, FTP, SNMP, SMTP, SSH, SSL, HTTP, HTTPS (Certificaten gehaald bij : SANS/GIA/ ISACA) Tooling : Nmap, Wireshark, Metasploit, Javascript, HTML, Python, HP ArcSight, Splunk
C37: =PROPER(C19) ->  | G37: 4.2.1 Categoriemanagement I(V) | H37: Bestuurlijke informatica, Bestuurlijke informatiekunde | I37: Bachelor Bedrijfskundige Informatica, Master Public Information Management | J37: Inkoopstrategie | K37: Purchaising Leadership NEVI 3 | T37: Bedrijfsvoering | U37: Coördinerend Adviseur Bedrijfsvoering | V37: 13-15 | W37: Bestuurssensitiviteit, creativiteit, netwerken, motiveren, samenwerken, overtuigingskracht, plannen en organiseren | X37: Uitvoering | Y37: Senior Medewerker Behandelen en Ontwikkelen | Z37: 11-14 | AA37: analyseren, bestuurssensitiviteit, klantgerichtheid, samenwerken, overtuigingskracht, plannen en organiseren, motiveren, creativiteit | AF37: Voor sommige producten en diensten binnen de Informatievoorziening staat de klassieke benadering van inkopen onder druk. Het paradigma van ‘het controleren en beheersen van aanbieders én het sturen door de opdrachtgever’ tendeert naar meer ‘loslaten en vertrouwen én het laten leiden door de opdrachtnemer’. Naast deze tendens naar meer strategisch partnerschap, waarbij veeleer op toegevoegde waarde dan op prijs wordt in¬gekocht, ontstaat er ook aandacht voor budget neutrale vormen van inkoop (ruilmodellen, uitwisselingsplatforms). | AG37: Rijksacademie voor Project- en Programmamanagement; Managing Successful Programs Practitioner, (Post) HBO-modules, Rijksacademie Inkoop, Aanbesteding en IV
G38: 4.2.2 Inkoop I(V) | H38: Bestuurlijke informatica | I38: Bachelor Bedrijfskundige Informatica | J38: Informatiemanagement | K38: Business Information Management Foundation | L38: Professioneel Inkopen | M38: Expert NEVI 2 | N38: Uitbesteding ICT | O38: Foundation ISPL Procurement Management | T38: Bedrijfsvoering | U38: Senior Adviseur Bedrijfsvoering | V38: 11-13 | W38: analyseren, creativiteit, netwerken, omgevingsbewustzijn, organisatiesensitiviteit, overtuigingskracht, plannen en organiseren | X38: Uitvoering | Y38: Senior Medewerker Behandelen en Ontwikkelen | Z38: 11-14 | AA38: analyseren, creativiteit, netwerken, omgevingsbewustzijn, organisatiesensitiviteit, overtuigingskracht, plannen en organiseren, resultaatgerichtheid | AF38: Voor sommige producten en diensten binnen de Informatievoorziening staat de klassieke benadering van inkopen onder druk. Het paradigma van ‘het controleren en beheersen van aanbieders én het sturen door de opdrachtgever’ tendeert naar meer ‘loslaten en vertrouwen én het laten leiden door de opdrachtnemer’. Naast deze tendens naar meer strategisch partnerschap, waarbij veeleer op toegevoegde waarde dan op prijs wordt ingekocht, ontstaat er ook aandacht voor budget neutrale vormen van inkoop (ruilmodellen, uitwisselingsplatforms). | AG38: (Post) HBO-modules, Rijksacademie In- koop, Aanbesteding en IV, Prince2 Foundation
G39: 4.2.3 Relatiemanagement I(V) | H39: Service Alignment | I39: Professional ITSM Alignment of IT and the Business (ISO 20000); ITIL Service Design; ITIL Service Offerings and Agreements | T39: Bedrijfsvoering | U39: Senior Adviseur Bedrijfsvoering | V39: 11-13 | W39: analyseren, creativiteit, netwerken, omgevingsbewustzijn, organisatiesensitiviteit, overtuigingskracht, plannen en organiseren | X39: Uitvoering | Y39: Senior Medewerker Behandelen en Ontwikkelen | Z39: 11-14 | AA39: analyseren, bestuurssensitiviteit, klantgerichtheid, samenwerken, overtuigingskracht, plannen en organiseren, motiveren, creativiteit | AF39: De relatiemanager is verantwoordelijk voor het relatiebeheer met de klant en het adviseren van de klant bij behoeften of problemen. Hij/zij draagt zorg voor de nakoming van gemaakte afspraken conform contracten. | AG39: ITSM Foundation; ITIL Foundation, Nima B, Business Information Management Foundation, Informatiesystemen Foundation
G40: 4.2.4 Contract- / Leveranciermanagement | H40: Service Level management | I40: Professional ITSM Alignment of IT and the Business (ISO20000) | J40: Professioneel Inkopen | K40: Expert NEVI 2 | L40: Uitbesteding ICT | M40: Foundation ISPL Procurement Management | T40: Bedrijfsvoering | U40: Senior Adviseur Bedrijfsvoering | V40: 11-13 | W40: analyseren, creativiteit, netwerken, omgevingsbewustzijn, organisatiesensitiviteit, overtuigingskracht, plannen en organiseren | X40: Uitvoering | Y40: Expert I(v) | Z40: 11-13 | AA40: analyseren, bestuurssensitiviteit, klantgerichtheid, samenwerken, overtuigingskracht, plannen en organiseren, motiveren, creativiteit | AF40: De contractmanager bij een klantorganisatie is verantwoordelijk voor het, namens de klant, afsluiten en beheren van contracten met leveranciers. De focus van deze functie ligt meestal op het beheren van de juridische en financiële aspecten van een contractuele overeenkomst. De leveranciermanager is verantwoordelijk voor het aansturen van een leverancier op de inhoudelijke aspecten van de met een leverancier overeengekomen dienstverlening. Hij werkt nauw samen met de contractmanager. | AG40: Contractmanagement Foundation (CATS), (Post) HBO-modules, ITSM Foundation; ITIL Foundation
G41: 4.3.1 Informatieanalyse | H41: Informatiemanagement | I41: Business Information Management Foundation | T41: Bedrijfsvoering | U41: Senior Adviseur Bedrijfsvoering | V41: 11-13 | W41: analyseren, creativiteit, netwerken, omgevingsbewustzijn, organisatiesensitiviteit, overtuigingskracht, plannen en organiseren | X41: Uitvoering | Y41: Senior Medewerker Behandelen en Ontwikkelen | Z41: 11-14 | AA41: analyseren, creativiteit, netwerken, omgevingsbewustzijn, organisatiesensitiviteit, overtuigingskracht, plannen en organiseren, resultaatgerichtheid | AF41: De informatieanalist analyseert op basis van organisatieonderzoek de behoeften aan informatie van een organisatie en/of gebruikers. Hij vertaalt de onderzoeksresultaten in geïdentificeerde objecten en in het informatie- of gegevens- of datamodel. Ook wel functioneel ontwerp genoemd. Het vakgebied Informatievoorziening vernieuwt zichzelf voortdurend en geeft mogelijkheden voor vernieuwing of verbetering van Iv-bedrijfsprocessen en organisatie. Informatieanalyse toont zich initiatiefvol in de vertaling van technologische en maatschappelijke ontwikkelingen, maar ook in het (doen) uitvoeren van onderzoek naar de kwaliteit van de Iv-bedrijfsprocessen en het vertalen daarvan naar realistische mogelijkheden voor verbetering van- en consequenties voor de Iv-bedrijfsvoering. | AG41: TOGAF practitioner, Bachelor Bedrijfskundige Informatica, Information Security Foundation based on ISO/IEC 27002, Ontwikkeling Informatiesystemen Foundation, Object Oriëntatie Foundation, Applicatiemanagement Foundation, ITSM Foundation; ITIL Foundation
G42: 4.3.2 Business Analyse | H42: Informatiemanagement | I42: Business Information Management Foundation | T42: Bedrijfsvoering | U42: Senior Adviseur Bedrijfsvoering | V42: 11-13 | W42: analyseren, creativiteit, netwerken, omgevingsbewustzijn, organisatiesensitiviteit, overtuigingskracht, plannen en organiseren | X42: Uitvoering | Y42: Senior Medewerker Behandelen en Ontwikkelen | Z42: 11-14 | AA42: analyseren, creativiteit, netwerken, omgevingsbewustzijn, organisatiesensitiviteit, overtuigingskracht, plannen en organiseren, resultaatgerichtheid | AF42: De business analist is een adviseur voor de inrichting van bedrijfsprocessen, de bedrijfsvoering en de daarvoor benodigde informatievoorziening. De business analist analyseert (de behoeften aan) informatie en informatiesystemen, uitgaande van de eisen aan de bedrijfsprocessen en de workflow daarbinnen. In het verlengde daarvan wordt meegewerkt aan het vaststellen en verbeteren van de informatievoorziening in het algemeen en aan specifieke of individuele informatiesystemen om daarmee bedrijfsprocessen optimaal te ondersteunen. Bij SAFe is de business analist is in de meeste gevallen verantwoordelijk voor het opstellen van de business epics op portfolio niveau. In die hoedanigheid vormt deze rol een belangrijke schakel tussen de bedrijfsvisie aan de ene kant, en de realisatie van de bedrijfsdoelen die deze visie invullen anderzijds. Op corporate dan wel domein portfolio niveau zal de Business Analist samen met de enterprise architecten een team vormen die samen als team zorgdragen voor opstellen van epics, om zodoende de organisatie van werkvoorraad te voorzien. Het team kan werken als team, maar de kanban werkwijze past hier ook. In elk geval visualiseren zij de voortgang van alle epics middels een fysiek kanban bord. Voor die epics die de business analist opstelt kan hij de rol aan van epic owner aannemen. | AG42: TOGAF practitioner, Bachelor Bedrijfskundige Informatica, Information Security Foundation based on ISO/IEC 27002, Ontwikkeling Informatiesystemen Foundation, Object Oriëntatie Foundation, Applicatiemanagement Foundation, ITSM Foundation; ITIL Foundation, SAFE Agilist, SAFe Product Owner
G43: 4.3.3 Business Intelligence / Data Analyse | H43: Informatiemanagement | I43: Business Information Management Foundation | J43: Data Management | K43: Data Management Body of Knowledge | T43: Bedrijfsvoering | U43: Senior Adviseur Bedrijfsvoering | V43: 11-13 | W43: analyseren, creativiteit, netwerken, omgevingsbewustzijn, organisatiesensitiviteit, overtuigingskracht, plannen en organiseren | X43: Uitvoering | Y43: Expert I(v) | Z43: 11-13 | AA43: analyseren, creativiteit, netwerken, omgevingsbewustzijn, organisatiesensitiviteit, overtuigingskracht, plannen en organiseren, resultaatgerichtheid | AF43: Business intelligence/ data analyse is erop gericht informatie te verzamelen en te analyseren teneinde beslissingsondersteunende informatie te verkrijgen. De BI/data-specialist is een functie die sterk in ontwikkeling is als gevolg van de toegevoegde waarde van datamining (big-data. De BI/data-specialist analyseert behoeften aan (strategische of tactische) managementinformatie en stelt query’s op waarmee datamining wordt gerealiseerd en waarmee de gevraagde informatie kan worden gepresenteerd. | AG43: TOGAF practitioner, Ontwikkeling Informatiesystemen Foundation, Object Oriëntatie Foundation, Bachelor Bedrijfskundige Informatica, Python Fundamentals / Advanced
G44: 4.3.4 Data Science | H44: Bestuurlijke informatica | I44: Bachelor / Master Bedrijfskundige Informatica | T44: Bedrijfsvoering | U44: Senior Adviseur Bedrijfsvoering | V44: 11-13 | W44: analyseren, creativiteit, netwerken, omgevingsbewustzijn, organisatiesensitiviteit, overtuigingskracht, plannen en organiseren | X44: Uitvoering | Y44: Senior Medewerker Behandelen en Ontwikkelen | Z44: 11-14 | AA44: analyseren, creativiteit, netwerken, flexibiliteit, organisatiesensitiviteit, overtuigingskracht, plannen en organiseren | AF44: Data Science is een specialisme voor het definiëren en verkrijgen van relevante informatie voor de bedrijfsvoering van een organisatie of afdeling. Vaak zet de Data Scientist geavanceerde BI-tooling in en definieert algoritmen om de gewenste informatie beschikbaar te krijgen. | AG44: Business Information Management Foundation, Data Management Body of Knowledge, Python Fundamentals / Advanced
G45: 4.4.1 Informatiecoaching | T45: Bedrijfsvoering | U45: Adviseur Bedrijfsvoering | V45: 9-10 | W45: analyseren, klantgerichtheid, omgevingsbewustzijn, plannen en organiseren, samenwerken, voortgangscontrole, zelfontwikkeling | X45: Uitvoering | Y45: Medewerker Behandelen en Ontwikkelen | Z45: 9-10 | AA45: analyseren, klantgerichtheid, omgevingsbewustzijn, plannen en organiseren, resultaatgerichtheid, samenwerken, voortgangscontrole, zelfontwikkeling | AF45: Informatiecoaching leert medewerkers persoonlijk, in klassikale vorm of met digitale instrumenten hun digivaardigheid te vergroten. O.a. hoe ze sneller met de nodige accuratesse, gegeven de beschikbare middelen, de benodigde informatie het best kunnen vinden, gebruiken en vastleggen voor toekomstig (her)gebruik. Met kennis van zaken (processen, kaders en richtlijnen, mogelijkheden van systemen) biedt informatiecoaching praktische handvatten zodat medewerkers hun werk efficiënt en met plezier vormgeven. Informatiecoaching draagt bij aan de lerende organisatie door informatieprofielen (informatiebehoeften & zoekgedrag persona’s) op te stellen, te onderhouden, te analyseren en voorstellen voor structurele verbetering te doen.
G46: 4.4.2 Leer- Ontwikkelmanagement | H46: Scrum Master SAFe | I46: SAFe Scrum Manager | J46: Product Owner SAFe | K46: SAFe Product Owner, Leading SAFe | T46: Bedrijfsvoering | U46: Senior Adviseur Bedrijfsvoering | V46: 11-13 | W46: analyseren, creativiteit, netwerken, omgevingsbewustzijn, organisatiesensitiviteit, overtuigingskracht, plannen en organiseren | X46: Uitvoering | Y46: Senior Medewerker Behandelen en Ontwikkelen | Z46: 11-13 | AA46: analyseren, creativiteit, samenwerken, motiveren, bestuurssensitiviteit, overtuigingskracht, plannen en organiseren, klantgerichtheid | AF46: De Leer-ontwikkelmanager is een manager die de principes en de toepassing van Lean-Agile leiderschap uitdraagt in een SAFe omgeving. Meer specifiek: • Heeft de HR-verantwoordelijkheid voor individuele medewerkers in een ART of team. • Zorgt voor een leer- en ontwikkelomgeving waarin medewerkers in 1e instantie beter kunnen worden in het eigen werkgebied (mastery) en in 2e instantie werken aan de persoonlijke (carrière-)ontwikkeling. • Zorgt ervoor dat governance, ondersteunende processen zo worden ingericht dat medewerkers en teams kunnen excelleren. • Ontwikkelt mensen die op hun beurt zorgen voor oplossingen • Begeleidt teams naar zelforganisatie en team excellence (high performance teams) • Is getraind in lean en agile principes en deze lange-termijn-filosofie vormt de basis voor het dagelijks handelen en de dagelijkse beslissingen • Begrijpt lean en agile gedrag en coacht hierop/hierin • Is praktijk-ervaren met het gedachtegoed en de tools van continu-verbeteren en draagt dit over • Is het voorbeeld van ‘practice what you preach’ en voelt persoonlijke verantwoordelijkheid voor lean-agile succes • Ondersteunt scrummasters en releasetrain engineers in het wegnemen van impediments. | AG46: Leergang Coachend Leidinggeven of Agile Leidinggeven of Dienend, Faciliterend en Coachend Leiderschap in een Agile omgeving , Opleiding Teamcoach – Individueel Coachen, Resultaatgericht Leidinggeven, DevOps Fundamentals
G47: 4.4.3 (Agile) Coaching | H47: Scrum Master Agile Scrum | I47: PSM I of vergelijkbare opleiding | J47: Scrum Master SAFe | K47: SAFe Scrum Manager | L47: Product Owner Scrum | M47: PSPO I of vergelijkbare opleiding | N47: Product Owner SAFe | O47: SAFe Product Owner, Leading SAFe | T47: Bedrijfsvoering | U47: Senior Adviseur Bedrijfsvoering | V47: 11-13 | W47: analyseren, creativiteit, netwerken, omgevingsbewustzijn, organisatiesensitiviteit, overtuigingskracht, plannen en organiseren | X47: Uitvoering | Y47: Senior Medewerker Behandelen en Ontwikkelen | Z47: 11-14 | AA47: analyseren, creativiteit, samenwerken, motiveren, bestuurssensitiviteit, overtuigingskracht, plannen en organiseren, klantgerichtheid | AF47: Om de verandering naar agile werken te begeleiden is het noodzakelijk om ondersteuning te geven bij de introductie van nieuwe denkwijzen, methoden en raamwerken. Dit gebeurt op proces, rol en inhoud. Agile coaching staat voor iemand in de organisatie die het mogelijk maakt om organisatorische veranderingen te faciliteren, aan te jagen of zelfs te leiden. Hij heeft skills nodig op gebied van veranderingsmanagement en psychologie, maar de rol vereist ook kennis van en gevoel bij de organisatiecultuur en -ontwikkeling. Hij kan inschatten wat de mate van volwassenheid is en welke coaching technieken en leer- en ontwikkelinterventies passend zijn. Een (agile) coach heeft een bredere visie van het bedrijf en de medewerkers. Een agile coach kan werkzaam zijn op elke afdeling, vanuit de taakopdracht om de teams/medewerkers/managers te helpen zich te ontwikkelen. Agile coaches werken als zogenaamde change agents, en geven medewerkers de kracht en touwtjes in handen om beter te kunnen gaan werken. Uitgangspunt daarbij is dat teams zelf-organiserend zijn. Het is niet de taak van een agile coach om te bepalen hoe de problemen moeten worden opgelost maar om het probleemoplossend vermogen van een individu en/of van het team te vergroten. Een (agile) coach is daarmee een mentor, spiegel of een veranderingsmanager of een combinatie. | AG47: Leergang Coachend Leidinggeven of Agile Leidinggeven of Dienend, Faciliterend en Coachend Leiderschap in een Agile omgeving , Opleiding Teamcoach, Resultaatgericht Leidinggeven, DevOps Fundamentals
G48: 4.5.1 Product Owner | H48: Product Owner Scrum | I48: PSPO I of vergelijkbare opleiding | J48: Product Owner SAFe | K48: SAFe Product Owner | T48: Bedrijfsvoering | U48: Senior Adviseur Bedrijfsvoering | V48: 11-13 | W48: analyseren, creativiteit, netwerken, omgevingsbewustzijn, organisatiesensitiviteit, overtuigingskracht, plannen en organiseren | X48: Uitvoering | Y48: Expert I(v) | Z48: 11-13 | AA48: analyseren, creativiteit, netwerken, omgevingsbewustzijn, organisatiesensitiviteit, overtuigingskracht, plannen en organiseren, resultaatgerichtheid | AF48: De Product Owner is verantwoordelijk voor het maximaliseren van de waarde van het (business) product en de werkzaamheden van het Ontwikkelteam. Hoe dit precies gedaan wordt verschild enorm per organisatie, Scrum Team en individu. Zo kan een Product Owner die werkzaam is in een beleidsdirectie veel meer een procesmatige rol zijn die niet zijn tijd volledig vervult. Een Product Owner daarentegen bij bijvoorbeeld de ontwikkelafdeling van een uitvoeringsorganisatie zal die rol waarschijnlijk full time vervullen en veel meer inhoudelijk zijn. De Product Owner is de enige persoon die verantwoordelijk is voor het managen van de Product Backlog zoals benoemd in Scrum. In SAFe heet deze de Program of Solution Backlog of Team Backlog. In een SAFe omgeving heeft de Product Owner meer focus op het Scrumteam dan op andere zaken zoals de buitenwereld. Dat laatste wordt vaak ingevuld door de Product Manager. | AG48: Leergang Coachend Leidinggeven of Agile Leidinggeven of Dienend, Faciliterend en Coachend Leiderschap in een Agile omgeving , Writing User Stories , Stakeholder Management Training , Resultaatgericht Leidinggeven , DevOps Fundamentals , Effectief Beïnvloeden
G49: 4.5.2 Product Manager | H49: Product Owner Scrum | I49: PSPO I of vergelijkbare opleiding | J49: Product Owner SAFe | K49: SAFe Product Owner | T49: Bedrijfsvoering | U49: Senior Adviseur Bedrijfsvoering | V49: 11-13 | W49: analyseren, creativiteit, netwerken, omgevingsbewustzijn, organisatiesensitiviteit, overtuigingskracht, plannen en organiseren | X49: Uitvoering | Y49: Expert I(v) | Z49: 11-13 | AA49: analyseren, creativiteit, netwerken, omgevingsbewustzijn, organisatiesensitiviteit, overtuigingskracht, plannen en organiseren, resultaatgerichtheid | AF49: De Product Manager is verantwoordelijk voor het maximaliseren van de waarde van het (business) product en de werkzaamheden van de ontwikkelteams. Hoe dit precies gedaan wordt verschild enorm per organisatie, Scrum Team en individu. De Product Manager is de enige persoon die verantwoordelijk is voor het managen van de Program Backlog (voor een ART) zoals benoemd in SAFe en kan daarbij de rol van Epic Owner op zich nemen. Over het algemeen is een Product Manager in een SAFe omgeving meer met de buitenwereld bezig, met name het afstemmen met alle belanghebbenden. | AG49: Leergang Coachend Leidinggeven of Agile Leidinggeven of Dienend, Faciliterend en Coachend Leiderschap in een Agile omgeving , Writing User Stories , Stakeholder Management Training , Resultaatgericht Leidinggeven , DevOps Fundamentals , Effectief Beïnvloeden
G50: 4.5.3 (Gedelegeerd) Business Owner | H50: Business Owner SAFe | I50: PSPO I of vergelijkbare opleiding | J50: Product Owner SAFe | K50: SAFe Product Owner | T50: Bedrijfsvoering | U50: Coördinerend / Specialistisch Adviseur Bedrijfsvoering | V50: 13-15 | W50: Oordeelsvorming, creativiteit, netwerken, motiveren, omgevingsbewustzijn, organisatiesensitiviteit, overtuigingskracht, plannen en organiseren | X50: Uitvoering | Y50: Senior Medewerker Behandelen en Ontwikkelen | Z50: 13-15 | AA50: Bestuurssensitiviteit, creativiteit, netwerken, motiveren, samenwerken, overtuigingskracht, plannen en organiseren | AF50: De business owner heeft een essentiële rol die (in samenwerking met andere business owners) de verantwoordelijkheid draagt voor governance, doelgerichtheid, return on investment van een ART (Agile Release Train) of Value Stream, ook wel vertaald als productline, center of excellence etc. De business owner toont het leiderschap en heeft het vertrouwen van de organisatie dat er richting wordt geven aan de doelstellingen, belemmeringen worden weggenomen, vertegenwoordiging is georganiseerd voor de business, de klant en de ontwikkelorganisatie. Hij/ zij geeft rekenschap over doelen en resultaten en indien nodig over de gemaakte keuzes. De business owner geeft richting aan zelf-organiserende teams & releasetrains met behulp van ontwikkeling en onderhoud van de missie en visie. Hij/zij zorgt voor alignement op de strategische thema’s. Hij ondersteunt de teams met coaching en ontwikkeling van vaardigheden. De business owner is een lean-agile leider. Daarnaast is hij/zij de Epic Owner. De bovengenoemde beschrijving van dit profiel zou inhouden dat dit profiel thuishoort in schalen boven schaal 15. Te denken valt aan posities op het niveau van Directeur of Directeur Generaal. Aangezien de KWIv profielen niet verder gaan dan schaal 15 is ervoor gekozen de term Gedelegeerd te gebruiken. In de praktijk zal deze rol zal in voorkomende situaties niet altijd door de Business Owner zelf worden opgepakt, maar worden gedelegeerd. | AG50: Leergang Coachend Leidinggeven of Agile Leidinggeven of Dienend, Faciliterend en Coachend Leiderschap in een Agile omgeving , Stakeholder Management Training , Resultaatgericht Leidinggeven , DevOps Fundamentals , Effectief Beïnvloeden
G51: 5.1.1 Projectleiderschap I(V) | H51: Projectmanagement | I51: Professional Projectmanager; PRINCE2 Practitioner | J51: Programmamanagement | K51: MSP Foundation | T51: Project-/ Programmamanagement | U51: Projectleider | V51: 9-11 | W51: netwerken, motiveren, organisatiesensitiviteit, plannen en organiseren, resultaatgerichtheid, zelfontwikkeling | AF51: De projectleider is operationeel verantwoordelijk voor een project op het gebied van projectmanagement. Hij werkt in opdracht van een project- of programmamanager, of van een andere opdrachtgever, bijvoorbeeld een manager van een afdeling. | AG51: IT Management Foundation; Professional Management and Improvement of IT Service Management processes, Rijksacademie voor Project- en Programmamanagement, Business Information Management Foundation, ITSM Foundation; ITIL Foundation, Agile Scrum Foundation
G52: 5.1.2 Projectmanagement I(V) | H52: Projectmanagement | I52: Professional Projectmanager; PRINCE2 Practitioner | J52: Programmamanagement | K52: MSP Foundation, MSP Practitioner | T52: Project-/ Programmamanagement | U52: Project-/ Programmamanager | V52: 12-15 | W52: bestuurssensitiviteit, plannen en organiseren, resultaatgerichtheid, omgevingsbewustzijn, netwerken, aansturen organisatie, motiveren, creativiteit | AF52: De projectmanager is verantwoordelijk voor een project op strategisch/tactisch niveau. | AG52: IT Management Foundation; Professional Management and Improvement of IT Ser- vice Management processes, Rijksacademie voor Project- en Programmamanagement, Business Information Management Foundation, ITSM Foundation; ITIL Foundation, Applicatiemanagement Foundation, Agile Scrum Foundation
G53: 5.1.3 Programmamanagement I(V) | H53: Projectmanagement | I53: Professional Projectmanager; PRINCE2 Practitioner | J53: Programmamanagement | K53: MSP Practitioner | T53: Project-/ Programmamanagement | U53: Project-/ Programmamanager | V53: 12-15 | W53: bestuurssensitiviteit, plannen en organiseren, resultaatgerichtheid, omgevingsbewustzijn, netwerken, aansturen organisatie, motiveren, creativiteit | AF53: De programmamanager is verantwoordelijk voor het beheer en de coördinatie van de realisatie van een portfolio aan project of soms een specifiek een programma van activiteiten en projecten. De programmamanager coördineert daarbij het definiëren van projecten en het prioriteren en opnemen van projecten in zijn programmaplan of projectenportfolio. | AG53: IT Management Foundation; Professional Management and Improvement of IT Service Management processes, Rijksacademie voor Project- en Programmamanagement; Managing Successful Pro- grams Practitioner, Business Information Management Foundation, ITSM Foundation; ITIL Foundation, Applicatiemanagement Foundation, SAFe (Scaled Agile Framework), RTE (Rail Train Engineer)
G54: 5.1.4 Portfoliomanagement | H54: Bestuurlijke informatica | I54: Bachelor Bedrijfskundige Informatica | J54: Portfolio Management | K54: Management of Portfolio Foundation/Prationer | T54: Bedrijfsvoering | U54: Senior Adviseur Bedrijfsvoering | V54: 11-13 | X54: Uitvoering | Y54: Senior Medewerker Behandelen en Ontwikkelen | Z54: 11-13 | AF54: Portfoliomanagement is een relatief nieuw taakgebied. De meeste organisaties die met portfoliomanagement houden zich vooral bezig met PPM (project portfoliomanagement). Een portfoliomanager is in dat geval iemand die een portfolio van project monitort en het management daarover rapporteert. Indien gewenst kan de portfoliomanager ook adviezen opstellen. | AG54: Informatiesystemen Foundation, Business Information Management Foundation, Managing Successful Programs Foundation, IT Management Foundation, Foundation Certificate in Portfolio, Programme and Project Offices
G55: 5.2.1 Scrum Master | H55: Scrum Master Agile Scrum | I55: PSM I of vergelijkbare opleiding | J55: Scrum Master SAFe | K55: SAFe Scrum Manager | T55: Bedrijfsvoering | U55: Senior Adviseur Bedrijfsvoering | V55: 11-13 | W55: analyseren, creativiteit, netwerken, omgevingsbewustzijn, organisatiesensitiviteit, overtuigingskracht, plannen en organiseren | X55: Uitvoering | Y55: Expert I(v) | Z55: 11-13 | AA55: analyseren, creativiteit, netwerken, omgevingsbewustzijn, organisatiesensitiviteit, overtuigingskracht, plannen en organiseren, resultaatgerichtheid | AF55: De Scrum Master is ervoor verantwoordelijk dat Scrum wordt begrepen en goed wordt uitgevoerd. Scrum Masters doen dit door ervoor te zorgen dat het Scrum Team zich houdt aan de Scrum theorie, praktijk en regels. De Scrum Master is een dienend leider voor het Scrum Team. De Scrum Master helpt diegenen buiten het Scrum Team te begrijpen welke van hun interacties met het Scrum Team behulpzaam zijn en welke niet. De Scrum Master helpt iedereen deze interacties te veranderen om zo de waarde die door het Scrum Team wordt gecreëerd te maximaliseren. | AG55: Leergang Coachend Leidinggeven of Agile Leidinggeven of Dienend, Faciliterend en Coachend Leiderschap in een Agile omgeving , Opleiding Teamcoach, Resultaatgericht Leidinggeven, DevOps Fundamentals
G56: 5.2.2 Release Train Engineer | H56: Scrum Master Agile Scrum | I56: PSM I of vergelijkbare opleiding | J56: Scrum Master SAFe | K56: SAFe Scrum Manager | L56: SAFE Release Train Engineer | M56: RTE-Certificering | T56: Bedrijfsvoering | U56: Senior Adviseur Bedrijfsvoering | V56: 11-13 | W56: analyseren, creativiteit, netwerken, omgevingsbewustzijn, organisatiesensitiviteit, overtuigingskracht, plannen en organiseren | X56: Uitvoering | Y56: Expert I(v) | Z56: 11-13 | AA56: analyseren, creativiteit, netwerken, omgevingsbewustzijn, organisatiesensitiviteit, overtuigingskracht, plannen en organiseren, resultaatgerichtheid | AF56: De Release Train Engineer (RTE) in het Scaled Agile Framework (SAFe) is de Scrum Master van het team van teams dat wordt aangeduid met de term ‘Agile Release Train’, (ART). De RTE ondersteunt meerdere niveaus (team van teams, ondersteunende teams, voorbereidende teams, uitvoerende teams, afrondende teams), en moet het inzicht hebben om over al die niveaus zijn taken en inspanning te verdelen. Hij/zij zorgt er letterlijk voor dat de ART goed wordt onderhouden en kan blijven rijden. De RTE is tevens verantwoordelijk voor het faciliteren van alle evenementen tijdens de rit, zoals de 2-daagse planning of de kwartaal systeem review. | AG56: Leergang Coachend Leidinggeven of Agile Leidinggeven of Dienend, Faciliterend en Coachend Leiderschap in een Agile omgeving , Opleiding Teamcoach , Resultaatgericht Leidinggeven , DevOps Fundamentals
G57: 5.3.1 Informatiemanagement | H57: Bestuurlijke informatica | I57: Master Bedrijfskundige Informatica | T57: Bedrijfsvoering | U57: Senior Adviseur Bedrijfsvoering | V57: 11-13 | X57: Uitvoering | Y57: Senior Medewerker Behandelen en Ontwikkelen | Z57: 11-14 | AF57: De informatiemanager is eindverantwoordelijk voor de informatievoorziening van een organisatie, directoraat of directie op tactisch/operationeel niveau. Informatiemanagement wordt sterk wisselend ingevuld. Dit wordt veroorzaakt door het feit dat informatievoorziening in sommige organisaties beschouwd wordt als een kostenpost, waar in andere organisaties informatievoorziening beschouwd wordt als belangrijkste strategische factor. Afhankelijk van deze verschillende betekenissen wordt ook de invulling van Informatiemanagement bepaald. De verwachting is dat de strategische invulling op termijn gemeengoed zal zijn. | AG57: Business Information Management Foundation, ITSM Foundation; ITIL Foundation, Applicatiemanagement Foundation, Projectmanagement Foundation; PRINCE2 Foundation, Managing Successful Programs Foundation, Information Security Foundation based on ISO/IEC 27002, IT Management Foundation
G58: 5.3.2 Data / Gegevensmanagement | H58: Database Administration | I58: MCDBA | T58: Bedrijfsvoering | U58: Senior Adviseur Bedrijfsvoering | V58: 11-13 | W58: analyseren, creativiteit, netwerken, omgevingsbewustzijn, organisatiesensitiviteit, overtuigingskracht, plannen en organiseren | X58: Uitvoering | Y58: Senior Medewerker Behandelen en Ontwikkelen | Z58: 11-13 | AA58: analyseren, creativiteit, netwerken, flexibiliteit, organisatiesensitiviteit, overtuigingskracht, plannen en organiseren | AF58: De datamanager is strategisch/tactisch verantwoordelijk voor de gegevens in een organisatie. In die rol stuurt hij/zij vaak op het opstellen van een corporate datamodel, waarin de voor de organisatie van belang zijnde gegevens (informatie) en de gegevensdefinitie worden vastgelegd (overigens vaak ook de meer technische informatie over gegevens, zoals informatie over de (fysieke) vastlegging van gegevens in databases en in welke applicaties of systemen gegevens worden beheerd). | AG58: Databases en QSL Foundation, Ontwerp en Ontwikkeling Informatiesystemen Foundation, IT Foundation; A+ Essentials, Informatiesystemen Foundation, Applicatiemanagement Foundation, Information Security Foundation
G59: 5.3.4 Meta Data / Gegevensmanagement | H59: Database Administration | I59: MCDBA | T59: Bedrijfsvoering | U59: Adviseur Bedrijfsvoering | V59: 8-11 | W59: analyseren, klantgerichtheid, omgevingsbewustzijn, plannen en organiseren, samenwerken, voortgangscontrole, zelfontwikkeling | X59: Uitvoering | Y59: Medewerker Behandelen en Ontwikkelen | Z59: 8-11 | AA59: analyseren, klantgerichtheid, omgevingsbewustzijn, plannen en organiseren, resultaatgerichtheid, samenwerken, voortgangscontrole, zelfontwikkeling | AF59: Om digitale informatie te begrijpen (waardebepaling) en uit te kunnen uitwisselen, is het noodzakelijk dat we bekend zijn met elkaars manier van vastleggen van metagegevens. Standaardisatie van de manier waarop die informatie wordt beschreven is hierbij randvoorwaardelijk. Dat doen we door afspraken te maken over welke metagegevens minimaal nodig zijn, wat hun definitie is en over de manier waarop die gegevens binnen de organisatie worden vastgelegd en beheerd. Metagegevensmanagement borgt de eenheid in definitie en gebruik van sets van verplichte en niet verplichte metagegevens en biedt het fundament voor het duurzaam beheer, de (inter)departementale uitwisseling en het actief openbaar maken van overheidsinformatie. Het portfolio van metagegevens beslaat de beschrijvende, structurele, technische en administratieve metagegevens. Met een visie op het domein geeft metagegevensmanagement inzicht in de toegevoegde waarde van metagegevens voor de strategische, tactische en operationele doelstellingen van de organisatie. Metagegevensmanagement legt hiermee het fundament voor de opbouw van een dekkend portfolio (metagegevens repository) als mede voor de sturing op de kwaliteit van de metagegevens voor de beoogde toepassingen. Metagegevensmanagement zorgt in het tactische beheer ervoor dat de bedrijfsgegevens in de organisatie correct en consistent worden geïnterpreteerd en gebruikt. Dit geheel conform de eisen die daar door organisatie en wet en regelgeving aan worden gesteld op gebied van onder andere (duurzame) toegankelijkheid, vertrouwelijkheid en privacybescherming voor zolang als dat nodig is. | AG59: Databases en QSL Foundation, Ontwerp en Ontwikkeling Informatiesystemen Foundation, IT Foundation; A+ Essentials, Informatiesystemen Foundation, Applicatiemanagement Foundation, Information Security Foundation
G60: 5.3.5 Recordmanagement | T60: Bedrijfsvoering | U60: Adviseur Bedrijfsvoering | V60: 8-11 | W60: analyseren, klantgerichtheid, omgevingsbewustzijn, plannen en organiseren, samenwerken, voortgangscontrole, zelfontwikkeling | X60: Uitvoering | Y60: Senior Medewerker I(v) | Z60: 8-11 | AA60: analyseren, klantgerichtheid, omgevingsbewustzijn, plannen en organiseren, resultaatgerichtheid, samenwerken, voortgangscontrole, zelfontwikkeling | AF60: Recordmanagement is het deel van het management dat verantwoordelijk is voor de efficiënte en systematische controle over het aanmaken, ontvangen, onderhoud, gebruik en beschikbaarheid van records, met inbegrip van het proces van het bemachtigen en in stand houden van bewijs en informatie over bedrijfsactiviteiten en transacties in de vorm van records. Recordmanagement staat nadrukkelijk in dienst van de taken of functies die een organisatie uitvoert en de risico's die zij loopt als er geen goede archivering zou plaatsvinden. De snelle technische ontwikkelingen, mogelijkheden van de ICT en het procesgericht werken in een digitale werkomgeving beïnvloeden nadrukkelijk de vorm, inhoud, structuur van de opgeslagen records als mede de volledigheid en duurzaam behoud voor zolang als dat nodig is. Juist in een digitale werkomgeving van essentieel belang hierop te anticiperen door aan de bron alle kwaliteitseisen als uitgangspunt te nemen. Recordmanagement heeft hierbij de rol van vormgever van de kaders en normen en verantwoordelijk is voor de inbedding van de kwaliteitseisen in het informatie- en archiefbeheer in termen van: • Eisen aan inhoud, structuur en vorm van records; • Regels voor vervanging, conversie en migratie, etc.; • Metagegevens om de duurzame toegankelijkheid te borgen; • Regels voor selectie en vernietiging. Voor het digitaal inrichten van het gehele werk- en archiveringsproces is record-management een fundamenteel onderdeel van een integrale procesgerichte aanpak waarin alle aspecten van goed informatie-/recordbeheer en integrale kwaliteitszorg zijn meegenomen. Niet alleen de technische maar vooral de organisatorische aspecten die mede bepaald worden door de formele inrichting van het werkprocessen. O.a. door vóór, tijdens en na het werkproces de noodzakelijke beheeracties zo in te richten dat deze kwaliteitseisen voor digitale duurzaamheid garanderen. Recordmanagement biedt de specialistische kennis en kunde die vereist is om de noodzakelijke kwaliteitseisen in de organisatie te verankeren.
G61: 5.3.6 Kwaliteitsmanagement Iv | H61: Kwaliteitsmanagement | I61: IT Quality Assurance | J61: Projectmanagement | K61: Professional Projectmanager; PRINCE2 Practitioner | L61: Programmamanagement | M61: MSP Foundation, MSP Practitioner | T61: Bedrijfsvoering | U61: Senior Adviseur Bedrijfsvoering | V61: 11-13 | W61: analyseren, creativiteit, netwerken, omgevingsbewustzijn, organisatiesensitiviteit, overtuigingskracht, plannen en organiseren | X61: Uitvoering | Y61: Expert I(v) | Z61: 11-13 | AA61: analyseren, creativiteit, netwerken, omgevingsbewustzijn, organisatiesensitiviteit, overtuigingskracht, plannen en organiseren, resultaatgerichtheid | AF61: Kwaliteitsmanagement IV richt zich op het optimaliseren van de kwaliteit van IV processen, producten & services. Het is geen op zichzelf staand domein, maar komt terug in alle delen van het management van de organisatie. Het verbeteren van de kwaliteit is iets waar de organisatie op kan sturen waarbij de (interne) klant centraal staat. Met als focus het borgen van een optimale beschikbaarheid en kwaliteit van de duurzaam toegankelijke informatiehuishouding verbindt kwaliteitsmanagement IV de verschillende bedrijfsonderdelen die output leveren aan het uiteindelijke resultaat: de ‘end to end’ benadering. Kwaliteitsmanagement is continu op zoek naar verbeteracties en is gericht op innovaties en het implementeren hiervan. Met name in grote programma’s is het gebruikelijk een kwaliteitsmanager aan te stellen. | AG61: IT Management Foundation; Professional Management and Improvement of IT Ser- vice Management processes, Rijksacademie voor Project- en Programmamanagement, Business Information Management Foundation, ITSM Foundation; ITIL Foundation, Applicatiemanagement Foundation, Agile Scrum Foundation
G62: 5.4.1 It-Control | H62: IT-auditing | I62: Post HBO-opleiding, Certified Information Systems Auditor | T62: Bedrijfsvoering | U62: Senior Adviseur Bedrijfsvoering | V62: 11-13 | X62: Uitvoering | Y62: Senior Medewerker Behandelen en Ontwikkelen | Z62: 11-14 | AF62: Het vakgebied IT-Control is volop in ontwikkeling. Steeds zwaardere eisen worden gesteld aan de kwaliteit van het oordeel. Het belang van IT-control voor de strategie van de organisatie neemt toe. IT-control staat aan de vooravond van een verdergaande professionalisering, tot uitdrukking komend in onder andere de ontwikkeling van realistische normenkaders voor onderzoek. De IT-Controller is, evenals zijn evenknie de financieel controller, toezichthouder en verantwoordelijk voor de controle op het verantwoorde beheer van de informatievoorziening/ICT. De IT-controller voert soms de rol uit van EDP-auditor (die specifiek een controlerende rol heeft), en is voorts verantwoordelijk voor het toetsen van de kwaliteit, de integratie en de kosten van de informatievoorziening/ICT, inclusief projecten. | AG62: Informatiesystemen Foundation, Business Information Management Foundation, IT Foundation; A+ Essentials, Databases en QSL Foundation, Applicatiemanagement Foundation, TOGAF Practitioner, Information Security Foundation based on ISO/IEC 27002, ITSM Foundation; ITIL Foundation

Sheet Hulp bij invullen
A1: Aanvragen juist in de markt plaatsen
A3: 1. Enkelvoudige reguliere aanvraag zonder extra opties? | C3: Ga naar stap 3 | H3: Niet doen bij het invullen van aanvragen ICT Inhuur!!
A5: 2. Meerdere FTE's nodig? | C5: In negen van de tien gevallen gewoon als reguliere aanvraag zonder extra opties. Let wel op dat de eisen in proportie blijven (werk en denkniveau i.p.v. diploma, aantal jaren ervaring van iemand die iets dedicated heeft gedaan kan lager. Vermijdt ook ervaringseisen gerelateerd aan een specifieke klant). | H5: Teveel Fte’s op 1 aanvraag. Geef leveranciers de ruimte meer cv’s in te dienen en voeg de regel toe: ‘in geval meerdere kandidaten geschikt worden bevonden, behoudt de dienst zich het recht voor meerdere gunningen te doen.’ Op de aanvraag aangeven dat het om een aangewezen / gerede kandidaat of warme stoel gaat. De ADR verklaart dit onrechtmatig! Verambtelijken zonder de nog lopende nok te respecteren! Wensen als eis opnemen! Bijv. Bij voorkeur heeft de kandidaat…. Dit suggereert een wens en moet dan ook als wens worden genoteerd. Telefonisch toelichting geven aan een opdrachtnemer zonder dit ook te delen met de andere opdrachtnemers.
C8: Voeg eventueel de volgende regel toe bij de aanvraag: In geval meerdere kandidaten geschikt worden bevonden, behoudt de dienst zich het recht voor meerdere gunningen te doen. Afhankelijk van de hoeveelheid Fte’s, kan dan eventueel nog op de aanvraag worden meegegeven dat er bijv. 3 cv’s per opdrachtnemer mogen worden ingediend. Opdrachtnemers worden dan qua aanbiedingsbetrouwbaarheid niet benadeeld (KPI ziet op het indienen van minimaal 1 cv) en hebben de mogelijkheid door het indienen van meer cv’s ook met het tarief meer ruimte te pakken (een dure kandidaat kan direct worden gecompenseerd met een iets goedkopere kandidaat). Vermijdt onnodige clustering van aanvragen, maar zet ze zoveel mogelijk als aparte aanvragen uit, waar mogelijk ook verspreid in de tijd (met vooraankondiging van gelijkwaardige aanvragen). Breid de reguliere inschrijvingstijd uit, als dat kan.
A13: 3. Schaars profiel en mogelijk lastig in te vullen (zie ook 5)? | C13: Optie 1: zet de aanvraag uit als regulier met een max. tarief (geen aanbiedingsplicht, maar ook zekerheid dat afhankelijkheid/schaarste niet leidt tot voor klant onacceptabel tarief) Optie 2: zet de aanvraag uit tegen een hogere BBRA schaal Optie 3: maak de aanvraag vrijblijvend (geen aanbiedingsplicht, tarief afhankelijk van actuele schaarste en mate van concurrentie) Optie 4: zet de aanvraag uit als regulier, maar geef de opdrachtnemers langer de kans om te zoeken (schuif de datum ‘indienen offerte’ verder in de tijd.) Optie 5: doe een vooraankondiging dat de aanvragen er eerdaags (bijv. over twee weken) aankomen met een ruwe indicatie van de profielen, niveau, tarief/schaal Optie 6: zet de aanvraag uit en beleg een conference call waarin de opdrachtnemers, de inhurend manager en een inkoopvertegenwoordiger aanwezig zijn om in 1 x keer binnen korte tijd alle vragen helder te krijgen en te beantwoorden. Optie 7: beleg op voorhand een leveranciersmeeting waarin de manager de aanvraag (en het project) kan toelichten en breng daarna pas de aanvraag in de markt. Optie 8: voor schaarse profielen waaraan een constante behoefte is: zet een aanvraag proactief uit met een langere inschrijvingstijd (bijv. 1 maand). Herhaal deze zo vaak als nodig. Worden geschikte kandidaten gevonden, kan achteraf alsnog een budgetaanvraagMBPC worden ingeschoten. Er geldt geen aanbiedingsplicht. Optie 9: vermijdt in elk geval onnodige clustering van aanvragen met schaars profiel en wees zeer terughoudend bij het formuleren van eisen aan de kandidaat. Overweeg om eisen om te zetten naar wensen.
A22: 4. Veel profielen in een kort tijdsbestek? | C22: Optie 1: beleg op voorhand een leveranciersmeeting waarin de manager de aanvragen (en het project) kan toelichten en breng daarna pas de aanvragen in de markt. Optie 2: zet de aanvragen uit als regulier, maar geef de opdrachtnemers langer de kans om te zoeken (schuif de datum ‘indienen offerte’ verder in de tijd.) Optie 3: doe een vooraankondiging dat de aanvragen er eerdaags (bijv. over twee weken) aankomen met een ruwe indicatie van de profielen, niveau, tarief/schaal
A26: 5. Schaarste moeilijk in te schatten ? | C26: optie 1: neem contact op met de decentrale contractmanager bij je ministerie of de centrale contractmanager van de categorie. Deze heeft misschien ook informatie over soortgelijke profielen bij andere opdrachtgevers. optie 2: vraag informatie op bij de opdrachtnemers en leg zo mogelijk een indicatief profiel uit met het verzoek daarop te reageren (kandidaat aanbieden wel/niet mogelijk binnen toegestane afwijking van overheidstarieven, welke eisen in de aanvraag worden als knelpunt ervaren).

Sheet Info Kwaliteitsraamwerk I(v)
B1: Kwaliteitenprofielen | C1: Toelichting | D1: Voorbeelden van opleidingen
A2: PLANNEN | B2: 1.1.1 Informatiearchitectuur | C2: De informatiearchitect stelt - uitgaande van de principes van architectuur - de informatiearchitectuur op en beheert die architectuur (bijvoorbeeld gelet op gewijzigde informatiebehoeften van gebruikers). De informatiearchitectuur is de structuur van applicaties, databases en andere (data)gegevens verzamelingen (ook die in de niet-geautomatiseerde of in persoonlijke applicaties (zoals spreadsheets) opgenomen zijn. Bovendien worden de beleidsregels met betrekking tot het beheer van de (elementen van de) informatiearchitectuur opgesteld en beheerd. Een belangrijk aspect van deze functie is de integratie van informatiesystemen en (data) gegevens in een organisatie. Hoewel een datamanager meestal verantwoordelijk is voor het beheer van het bedrijfsdatamodel wordt dit voor de invulling van dit model vaak bij de data- of informatiearchitect belegd. | D2: Information Security Foundation based on ISO/IEC 27002, Ontwikkeling Informatiesystemen Foundation
B3: 1.1.2 Functioneel Ontwerp / Startarchitectuur | C3: De functioneel ontwerper is gespecialiseerd in het opstellen van ontwerpen voor nieuwe informatiesystemen. Hij stelt samen met gebruikers en de opdrachtgever de functionele specificaties op waaraan een informatiesysteem moet voldoen. De functioneel ontwerper stelt het ontwerp op (mede) op basis van de input van een informatieanalist en of business analist die specifiek de eisen aan informatie bij de gebruikers analyseert en vaststelt (en modelleert). Het beheer en onderhoud van een informatiesysteem ligt meestal bij een functioneel beheerder en/of een applicatiebeheerder. De functioneel ontwerper levert ook een bijdrage aan testplannen voor functionele en acceptatie testen. | D3: NORA, MARIJ (geen certificering), Ontwerp en Ontwikkeling Informatiesystemen Foundation; RAD/LAD; XML/UML; XBRL, Java; C#; .Net; Visual Basic; SAP/ERP; Cobol, Oracle; Databases en SQL Foundation; Objectoriëntatie Foundation, Testen Foundation; TMapNEXT Foundation
B4: 1.1.3 Applicatiearchitectuur | C4: De applicatie- of softwarearchitect draagt zorg voor het ontwerp van de architectuur van een totaal softwaresysteem en/of individuele applicaties en het technisch ontwerp daarvan. Hij werkt daarbij vanuit de principes van de architectuur (Nora - Gemma etc.). Deze functie komt voor in organisaties waar grote en complexe systemen worden ontwikkeld, bij de ontwikkeling van administratieve systemen en ook bij de ontwikkeling van embedded software. | D4: Java; C#; .Net; Visual Basic; SAP/ERP; Groupware/Lotus Notes; Powerbuilder/Sybase; Cobol/Cics/DB2; Cool Gen, Information Security Foundation based on ISO/IEC 27002, Ontwikkeling Informatiesystemen Foundation, Applicatiemanagement Foundation
B5: 1.1.4 Technische Architectuur | C5: De technische architect (o.a. infrastructuur) ontwerpt - op basis van architectuurprincipes - de (overall) structuur van de technische infrastructuur (netwerk, servers, storage). Deze architectuur van de technische infrastructuur moet worden gebaseerd op de informatiearchitectuur. Het automatiseringsbeleid en automatiseringsplannen. Hierbij wordt niet alleen een structuur ontworpen, maar vaak ook de eisen die aan de componenten van de technische infrastructuur worden gesteld, zoals eisen aan passieve en actieve netwerkcomponenten (ook multimedia), systeemsoftware (operatingsystemen en middleware), de netwerk(beheer) software, servers en server(beheer)software en storage. | D5: Information Security Foundation based on ISO/IEC 27002, ITSM Foundation; ITIL Foundation
B6: 1.1.5 Systeem Architectuur | C6: De System Architect is een functie die met name in het Scaled Agile Framework voorkomt. Hij/zij is verantwoordelijk voor het opstellen van de Architectural Features op programma niveau. Hij/zij overziet het gehele domein in technische zin. In die hoedanigheid is dit een belangrijke schakel tussen de product of domeinvisie aan de ene kant, en de benodigde aanpassingen aan het domein specifieke IT landschap die realisatie van deze visie ondersteunen anderzijds. Om te komen tot realisatie van de corporate doelen op het gebied van convergentie en ondersteunen van de strategie vertaald de System Architect de Corporate Architectural Epics in Architectural Features. Deze vult hij/zij aan met eventuele lokaal benodigde architectural features. De System Architect is een belangrijke sparringpartner voor de Product Manager en Product Owners. Hij/zij zal moeten onderhandelen en bedingen welke architectural features gerealiseerd dienen te worden, alvorens de business features gerealiseerd kunnen worden. Vaak moet de fundering eerst worden versterkt, eer er op voortgebouwd kan worden. Dit noemt SAFe de 'Architectural Runway'. In deze hoedanigheid maakt de System Architect deel uit van het Product Management Team. | D6: Information Security Foundation based on ISO/IEC 27002, ITSM Foundation; ITIL Foundation, SAFe Agilist, Leading SAFE Agile voor Lead engineers
B7: 1.1.6 Enterprise Architectuur | C7: De Enterprise Architect is ontwerper van de totale informatievoorziening. Meestal is hij ook betrokken bij het ontwerp en het beheer van de bedrijfsarchitectuur c.q. de architectuur van het bedrijfsproces. De Enterprise Architect is in een SAFe omgeving verantwoordelijk voor het opstellen van de Architectural Epics op portfolio niveau. In die hoedanigheid vormt deze rol een belangrijke schakel tussen de bedrijfsvisie aan de ene kant, en de benodigde aanpassingen aan het IT landschap die realisatie van deze visie ondersteunen anderzijds. Het hebben van zicht op de huidige vorm en status en de gewenste vorm en status van het IT landschap en de business processen (IST en SOLL) biedt de mogelijkheid om stappen (delta's) te definiëren om tot het doel landschap te komen. Deze stappen kunnen worden vertaald naar Architectural Epics. Op bedrijfsniveau dan wel domein portfolio niveau kan de Enterprise Architect samen met de Business Analisten een team vormen die samen als een Scrum team zorgdragen voor opstellen van Epics, om zodoende de organisatie van werkvoorraad te voorzien. Het team kan werken als een Scrum team in sprints, maar de kanban werkwijze past hier ook. In elk geval visualiseren zij de voortgang van alle Epics middels een fysiek kanban bord. Voor die Epics die de Enterprise Architect opstelt kan hij de rol aan van Epic Owner aannemen. | D7: Information Security Foundation based on ISO/IEC 27002, Ontwikkeling Informatiesystemen Foundation, Leading SAFE Agile voor Lead engineers, Writing User Stories , Opleiding Enterprise architectuur, Archimate Foundation & Practitioner
B8: 1.2.1 Informatiebeleid | C8: Het belang van het kwaliteitenprofiel Informatiebeleid voor de goede samenhang tussen missie, bedrijfsdoelstellingen en benodigde informatievoorziening binnen het Rijk neemt toe. Werkzaamheden worden tegenwoordig in groter verband uitgevoerd waarbij nadrukkelijk relaties worden gelegd tussen overheidsorganisaties en bestuurlijke niveaus en waarbij gebruik wordt gemaakt van rijksbrede standaards, richtlijnen en afspraken. | D8: Information Security Foundation based on ISO/IEC 27002, Ontwikkeling Informatiesystemen Foundation, Aplicatiemanagement Foundation, ITSM Foundation; ITIL Foundation
B9: 1.2.2 Innovatiemanagement | D9: Postdoc opleidingen, Zoals IMAC, UVA, TI- AS, ROI, Information Security Foundation based on ISO/IEC 27002, Ontwikkeling Informatiesystemen Foundation, Applicatiemanagement Foundation, ITSM Foundation; ITIL Foundation
B10: 1.2.3 Management Informatievoorziening | C10: Het vakgebied Informatievoorziening in een digitale werkomgeving is sterk dynamisch en vernieuwt zichzelf voortdurend door nieuwe innovatieve mogelijkheden die ICT-landschap bieden. Het creëert context voor vernieuwing of verbetering van de informatievoorziening in zowel de bedrijfsprocessen van de organisatie als in de keten. Management van de informatievoorziening dient hier initiatiefvol in te handelen in de vertaling van technologische en maatschappelijke ontwikkelingen en de nieuwe informatiebehoeften die hierdoor ontstaan. Binnen deze context moet management van de Informatievoorziening een duurzaam toegankelijke informatiehuishouding realiseren door de uiteenlopende kaders, normen en eisen systematisch te wegen en af te zetten tegen een huidig en toekomstig gebruik en adequaat te adviseren over de proportionaliteit van te nemen maatregelen. | D10: Information Security Foundation based on ISO/IEC 27002, Ontwikkeling Informatiesystemen Foundation, Aplicatiemanagement Foundation, ITSM Foundation; ITIL Foundation
B11: 1.3.1 Sourcingmanagement | C11: Uitbesteding vindt steeds vaker plaats op basis van resultaatafspraken. De resultaatafspraken kunnen betrekking hebben op vernieuwing of ontwikkeling van applicaties, het beheer van applicaties of zelfs het exploiteren van een geheel rekencentrum. De afspraken kunnen gemaakt worden met al bestaande private partijen of met een gezamenlijk Service Centrum. Regionale of landsgrenzen spelen hierbij vrijwel geen rol meer. Uitbesteding kan direct plaatsvinden of indirect omdat een leverancier zijn werkzaamheden elders laat uitvoeren. Al deze factoren veroorzaken dat sourcing steeds belangrijkere wordt voor organisaties. De sourcingadviseur is specialist wat betreft het vaststellen van de behoeften aan ICT-diensten en het vertalen daarvan naar advies over eisen die aan leveranciers en hun dienstverlening moeten worden gesteld. Daarbij beoordeelt hij/zij – meestal in het kader van structurele outsourcing – welke ICT-activiteiten door een organisatie (beter) zelf kunnen worden uitgevoerd en welke (beter) kunnen worden uitbesteed aan een leverancier van ICT-diensten. Ook de vorm waarin een samenwerking tussen klant en leverancier het beste vorm en inhoud kan worden gegeven, behoort tot de scope van de werkzaamheden van de sourcingadviseur. Vaak wordt de beslissing over al dan niet outsourcen en de contractuele vorm van samenwerking vastgelegd in een sourcingbeleid. | D11: Informatiesystemen Foundation, Business Information Management Foundation, Information Security Foundation based on ISO/IEC 27002, Contractmanagement CATS CM Foundation
A12: BOUWEN | B12: 2.1.1 Applicatieontwikkeling | C12: Applicatieontwikkeling vindt tegenwoordig op een andere manier plaats dan een aantal jaren geleden. Geen enkel systeem wordt meer van de grond af aan geprogrammeerd. De meeste nieuwe systemen zijn opgebouwd uit bouwstenen of zijn standaardapplicaties waarvan de parameters zodanig zijn ingesteld dat de standaardapplicatie geschikt wordt gemaakt voor een specifieke situatie. De manier van technisch ontwerpen en applicatieontwikkeling is hierop aangepast. Voorts is er een sterke specialisatie rond de te gebruiken technologie. Als afzonderlijke deskundigheid is het gebruik van open software toegevoegd. Veel gebruikte methodieken bij ontwikkelen van softwaresystemen zijn Agile Scrum, Agile XP en SAFe, waarbij de ontwikkelaars in toenemende mate gaan uitmaken van DevOps teams. In dat laatste geval zal kennis van continuous delivery en continuous integration opgedaan moeten worden. | D12: Ontwikkeling informatiesystemen Foundation; Object Oriëntatie Foundation, Applicatiemanagement Foundation (ASL), IT Foundation; A+ Essentials
B13: 2.1.2 Systeemontwikkeling | C13: Systeem ontwikkelaar of Systeem engineer is meestal een bouwer (en ontwerper) van technische systemen (embedded software). Het is in die zin een combinatie van de functie van technisch ontwerper en programmeur, met als specialisatie technische systemen. | D13: Ontwerp en Ontwikkeling Informatiesystemen Foundation, Testen Foundation, IT Foundation; A+ Essentials, Applicatiemanagement Foundation, Information Security Foundation
B14: 2.1.3 Netwerkontwikkeling | C14: De netwerk ontwikkelaar of netwerk engineer ontwerpt en configureert het netwerk (interne/LAN en de koppelingen met externe WAN-netwerken). De netwerk engineer selecteert de componenten van het netwerk (netwerkapparatuur en besturings-, beheer- en netwerkprogrammatuur) en stuurt de installatie en het beheer van deze componenten aan. | D14: Informatiesystemen Foundation, Ontwerp en Ontwikkeling Informatiesystemen Foundation, IT Foundation; A+ Essentials, Applicatiemanagement Foundation, Information Security Foundation
B15: 2.1.4 Data Engineering | C15: De data engineer heeft niet alleen ervaring met grote data volumes, verschillende dataformaten en uitwisseling van gegevens tussen diverse systemen (ETL), maar ook ervaring met relationele datastructuren. Daarnaast lost de data engineer op zijn tijd productie-issues op en neem hij regelmatig deel aan projecten voor productontwikkeling. De meest gebruikte methodiek bij ontwikkelen van softwaresystemen is Agile Scrum (SAFe). | D15: Java Software Designer; Microsoft Certified Solution Developer (etc.), RAD/LAD, RUP, Analyzing Data with Power BI, Analyzing Data with SQL Server Reporting Services, Python Fundamentals / Advanced,
B16: 2.2.1 Testmanagement | C16: Veel nieuwe systemen zijn momenteel opgebouwd uit bouwstenen of zijn standaardapplicaties waarvan de parameters zodanig zijn ingesteld dat de standaardapplicatie geschikt wordt gemaakt voor een specifieke situatie. De betrokkenheid van (eind)gebruikers en de wijze van testen zijn hierop aangepast. Daarnaast is door de invoering van Agile Scrum en Test Driven Development veel meer de nadruk komen te liggen op zoveel mogelijk geautomatiseerde testen door de systemen zelf. De laatste ontwikkelingen in testmanagement liggen op de vlak van testengineering. | D16: Testen Foundation; ISTQB Foundation, IT Foundation; A+ Essentials, Informatiesystemen Foundation, Projectmanagement Foundation; PRINCE2 Foundation, Applicatiemanagement Foundation, Ontwerp en Ontwikkeling Informatiesystemen Foundation; Object Oriëntatie Foundation
A17: UITVOEREN | B17: 3.1.1 Systeembeheer | C17: Systeembeheerder is een algemene functietitel voor een beheerder van servers en netwerken. In grote organisaties is vaak een verbijzondering doorgevoerd naar serverbeheerder en netwerkbeheerder. De titel wordt ook wel toegekend aan een technisch beheerder van een systeem, zijnde een applicatie of de combinatie van een of meerdere applicaties en de servers waarop die draaien. Incidenten en changes kunnen grote gevolgen hebben voor de continuïteit van systemen en daarmee voor de continuïteit van- en de beeldvorming over de organisatie. Systeembeheer moet in dergelijke situaties onder druk nauwkeurig en volgens de voorgeschreven procedures kunnen werken. De laatste tijd worden ontwikkelaar en beheers vaker samengevoegd in DevOps team. In dat geval zal kennis van continuous delivery en continuous integration opgedaan moeten worden. | D17: ITSM Foundation; ITIL Foundation, IT Foundation; A+ Essentials, Infrastructuurmanagement Foundation, Information Security Foundation
B18: 3.1.2 Changemanagement | C18: De changemanager is verantwoordelijk voor het beheer en gecoördineerd invoeren van wijzigingen in de ICT-omgeving; daarmee moet worden geborgd dat wijzigingen zonder merkbare of onacceptabele gevolgen voor gebruikers worden ingevoerd en dat de continuïteit van de informatievoorziening niet in gevaar komt. Changes (wijzigingen) in de ICT-omgeving kunnen betrekking hebben op informatiesystemen of applicaties en/of de technische infrastructuur (netwerk, servers., storage). | D18: ITSM Foundation; ITIL Foundation, Projectmanagement Foundation; PRINCE2 Foundation, IT Foundation; A+ Essentials, Informatiesystemen Foundation, Applicatiemanagement Foundation,Information Security Foundation
B19: 3.1.3 Functioneel Beheer | C19: De functioneel beheerder is primair verantwoordelijk dat een informatiesysteem voldoet aan de eisen van de gebruikers, daaraan blijft voldoen en bovendien dat de functionaliteit consistent is. De functioneel beheerder werkt nauw samen met gebruikers voor het evalueren van de functionele specificaties van een informatiesysteem en het uitwerken van de functionele specificaties bij gewenste wijzigingen in de functionaliteit. Gerealiseerde wijzigingen worden door de functioneel beheerder getest in een acceptatietest. De functioneel beheerder coördineert de invoering van wijzigingen in de gebruikersorganisatie. Daarnaast is de functioneel beheerder een vraagbaak voor gebruikers (in de tweede lijn) en coördineert het oplossen van problemen. | D19: Business Information Management Foundation, Informatiesystemen Foundation, Testen Foundation, ITSM Foundation; ITIL Foundation, Information Security Foundation based on ISO/IEC 27002
B20: 3.1.4 Serverbeheer | C20: Serverbeheer is een technische beheerfunctie en heeft primair tot taak om servers aan de gestelde eisen of prestatiekenmerken te laten voldoen. Vaak is de serverbeheerder betrokken bij de configuratie van een server en installeert en configureert de wijzigingen. De serverbeheerder monitort de werking van servers (vaak met specifieke tooling) en neemt reactie of preventief maatregelen om een server aan de gestelde eisen te laten voldoen. Bij storingen in server is de serverbeheerder opgelost. | D20: ITSM Foundation; ITIL Foundation, IT Foundation; A+ Essentials, Infrastructuurmanagement Foundation, Information Security Foundation
B21: 3.1.5 Netwerkbeheer | C21: Netwerkbeheer is een technische beheerfunctie en heeft primair tot taak om een netwerk aan de gestelde eisen of prestatiekenmerken te laten voldoen. Vaak is de netwerkbeheerder betrokken bij het ontwerp van een netwerk en installeert en configureert (wijzigingen) in netwerkcomponenten. De netwerkbeheerder monitort de werking van een netwerk (vaak met specifieke monitoringtools) en neemt reactief of preventief maatregelen om het netwerk aan de gestelde eisen te laten voldoen. Bij storingen in het netwerk worden deze door de netwerkbeheerder opgelost. | D21: ITSM Foundation; ITIL Foundation, IT Foundation; A+ Essentials, Infrastructuurmanagement Foundation, Information Security Foundation
B22: 3.1.6 Applicatiebeheer | C22: De applicatiebeheerder is primair verantwoordelijk dat een applicatie aan de overeengekomen prestatiekenmerken (performance, bedrijfszekerheid,) blijft voldoen. De applicatiebeheerder werkt vaak samen met een DBA en/of serverbeheerder. De applicatiebeheerder stuurt de realisatie van gewenste wijzigingen door een programmeur of DBA aan en coördineert de (technische) implementatie van de wijziging in de productieomgeving. Vaak is de applicatiebeheerder – in de tweede lijn – betrokken bij het oplossen van incidenten en problemen die ontstaan zijn door een technische reden. | D22: Ontwerp en Ontwikkeling Informatiesyste- men Foundation; RAD/LAD; XML/UML; XBRL, HTML, ASP, SOAP, XML, XSL-T, XPath,, DOM, XML Schema’s, Databases en SQL Foundation, IT Foundation; A+ Essentials, Informatiesystemen Foundation, Testen Foundation; TMapNext Foundation; ISTQB Certified Tester Foundation Level, Applicatiemanagement Foundation, ITSM Foundation; ITIL Foundation
B23: 3.1.7 Databasebeheer | C23: De databasebeheerder draagt zorg voor de kwaliteit, actualiteit, volledigheid en consistentie van gegevens in een database. De databasebeheer (i.t.t. datamanager) is operationeel verantwoordelijk voor gegevens (eventueel benoemd per database). De databasebeheerder stelt vaak het gegevensmodel voor een applicatie op in samenwerking met een informatieanalist of architect en beheert dat model inclusief de regels die moeten worden geborgd om de gegevens actueel, consistent, enzovoort te houden. De databasebeheerder verifieert de productieresultaten (op het aspect gegevensconsistentie en – correctheid) en voert periodieke analyses uit op de kwaliteit van de gegevens. | D23: Databases en QSL Foundation, Ontwerp en Ontwikkeling Informatiesystemen Foundation, IT Foundation; A+ Essentials, Informatiesystemen Foundation, Applicatiemanagement Foundation, Information Security Foundation
B24: 3.1.8 Recordbeheer | C24: De verregaande digitalisering van de werkprocessen biedt mogelijkheden om binnen de organisatie efficiënter en effectiever te werken en daarmee zowel de interne als de externe omgeving beter te bedienen. Deze transitie bij de overheid naar digitaal werken levert de uitdaging op hoe we digitale overheidsinformatie zo kunnen bewaren en beheren dat deze in de tijd gezien beschikbaar, toegankelijk, leesbaar en bruikbaar blijft. Binnen de algehele informatievoorziening van de organisatie zien we in werkprocessen informatieverwerking en -bewerking, gericht op inhoud en het wijzigen van inhoud, met daar tegenover informatiebeheer (recordbeheer). Recordbeheer dient, binnen dit brede aandachtsgebied, een aantal deelaspecten zoals gebruikersondersteuning, ontsluiting, archivering, vernietiging, overbrenging en een overkoepelende integrale kwaliteitszorg gericht op de bedrijfsinformatie. Onder bedrijfsinformatie verstaan we alle informatie die wordt gebruikt of beschikbaar komt in werkprocessen die overheidsorganisaties in het kader van hun taakstelling uitvoeren en dient verantwoording en bedrijfsvoering, de burgers in het kader van dienstverlening en het publiek in het kader van openbaarmaking van overheidsinformatie. De aandachtsgebieden vullen elkaar aan en hebben elkaar nodig. Recordbeheer vervult een belangrijke ondersteunende en stimulerende rol waarbij continuïteit van dienstverlening van groot belang is. Draagt zorg voor kwalitatieve intake, formele ontsluiting, distributie en archivering van de gekanaliseerde inkomende poststromen. Monitort de eenduidigheid en juistheid van de metagegevenssets op zaak, proces en documentniveau en signaleert tijdig de afwijkingen en de noodzakelijk herstelbewerkingen hierop. Recordbeheer onderhoudt hiertoe veelvuldig contact met zaakhouders/(mede)behandelaren teneinde de informatiebehoeften zo goed mogelijk af te stemmen en informatieprocessen bij het organisatieonderdeel beter te laten verlopen. | D24: Informatiesystemen Foundation
B25: 3.1.9 Data Stewardship | C25: Het jonge vakgebied van een data steward houdt zich voornamelijk bezig de klant/ business te ondersteunen in het onderhouden en creëren van data met een hoge kwaliteit. Het komt erop neer dat de data steward de kwaliteit van de data definieert, meet en verbetert in een continu proces, bijvoorbeeld conform criteria voor juistheid, compleetheid of actualiteit (vanuit business perspectief). Hier valt ook onder het correcte formaat en de correcte betekenis (vanuit vorm, perspectief, conform gegevensdefinitie).
B26: 3.2.1 Technical Support | C26: Technical support betreft een zware inhoudelijke rol. Technical support is in staat om het totaal van een vraagstuk te kunnen overzien. Breedte (overzicht) en diepte (specialistische deskundigheid) op enkele terreinen zijn hierbij van belang. Waar actuele kennis te kort schiet is Technical Support in staat zich nieuwe materie snel eigen te maken. Vaak is technisch support in de tweede lijn betrokken bij het oplossen van incidenten en problemen die ontstaan zijn door een technische reden. | D26: ITSM Foundation; ITIL Foundation, Projectmanagement Foundation; PRINCE2 Foundation, IT Foundation; A+ Essentials, Informatiesystemen Foundation, Applicatiemanagement Foundation, Databases en SQL Foundation, Ontwerp en Ontwikkeling Informatiesystemen Foundation, Functioneel Beheer Foundation, Information Security Foundation, Europees Computer Rijbewijs
B27: 3.2.2 1E Lijns Gebruikersondersteuning | C27: De 1e lijns medewerker gebruikersondersteuning (servicedesk/helpdesk) geeft – meestal telefonisch, maar ook via email – ondersteuning aan gebruikers die vragen hebben en is het 1e aanspreekpunt bij het oplossen van storingen, problemen enzovoort in de informatievoorziening. De 1e lijns medewerker registreert de vragen of meldingen van incidenten en biedt ook vaak oplossingen hiervoor. Lukt dat niet, wordt de het incident doorgezet nar de tweede lijn (Technisch support, applicatiebeheer etc..), maar de coördinatie blijft bij de 1e lijns medewerker en bewaakt dat een incident conform de SLA wordt afgehandeld. Bij een service/helpdesk kunnen veel meer taken worden belegd, al naar gelang de grootte van de organisatie. Dat kan bijvoorbeeld zijn het identificeren van problemen, het coördineren van wijzigingen, het registreren van gebruikers, het instellen van autorisaties, enzovoort. | D27: IT Foundation; A+ Essentials, Informatiesystemen Foundation, Europees Computer Rijbewijs
B28: 3.2.3 Incidentmanagement | C28: De incidentmanager is verantwoordelijk voor het oplossen van verstoringen en problemen met de informatievoorziening, zowel in informatiesystemen of applicaties als in de technische infrastructuur. Deze functie is afgeleid van het ITIL proces incidentmanagement. Het kan zowel een management/proces functie zijn als een operationele functie. | D28: ITSM Foundation; ITIL Foundation, IT Foundation; A+ Essentials, Informatiesystemen Foundation, Applicatiemanagement Foundation, Information Security Foundation
B29: 3.2.4 Problemmanagement | C29: De problemmanager is, in de rol van coördinator, verantwoordelijk voor het oplossen van verstoringen en problemen met de informatievoorziening, zowel in informatiesystemen/ applicaties als in de technische infrastructuur. Deze functie is afgeleid van het ITIL proces ‘problemmanagement’. De problemmanager komt in actie wanneer het incidentmanagement proces niet tot de juiste oplossing heeft geleid of een structurele oplossing moet worden gerealiseerd nadat in het kader van incidentmanagement een work-around is geïmplementeerd of geboden. | D29: ITSM Foundation; ITIL Foundation, IT Foundation; A+ Essentials, Informatiesystemen Foundation, Applicatiemanagement Foundation, Information Security Foundation
B30: 3.3.1 Service Level Management | C30: De service level manager is verantwoordelijk voor het beheer van de met gebruikers of klanten overeengekomen dienstverlening (meestal vastgelegd in SLA’s). Daarvoor wordt met gebruikers en lijnmanagement afgestemd over de behoeften aan producten en diensten en de eisen die daar worden gesteld; de vastlegging daarvan in de SLA’s; het toezicht op de levering van de overeengekomen diensten en het beheer van de SLA’s. Met de leverancier wordt afgestemd over de mogelijkheden, de kosten van levering en eventuele specifieke condities die aan levering worden gesteld. De functie van service level manager is ontstaan vanuit ITIL, waarbij de interne automatiseringsafdeling SLA’s ging afsluiten met de gebruikersafdelingen. Vervolgens werden ook met de externe leveranciers SLA’s afgesloten. Door de scheiding in vraag en aanbod in de Informatievoorziening neemt de druk op realisatie van- en daarmee de noodzaak van een consequente sturing op overeengekomen en realistische SLA’s toe. De service level manager bewaakt proactief of de daadwerkelijk geboden dienstverlening conform de SLA wordt uitgevoerd. Het is van belang dat Service Level Management binnen de IT-organisatie niet de rol van het ‘oliemannetje’ gaat vervullen en zelf de vraagstukken van klanten tracht op te lossen. Het is cruciaal dat Service Level Management afstand kan nemen van de dagelijkse ‘waan van de dag’ en patronen in problemen kan onderscheiden en binnen de IT-organisatie de maatregelen treft ter oplossing en voorkoming daarvan. | D30: ITSM Foundation; ITIL Foundation, Projectmanagement Foundation; PRINCE2 Foundation, Information Security Foundation based on ISO/IEC 27002
B31: 3.3.2 Capacitymanagement | C31: Capaciteitsmanagement is erop gericht om de vraag naar en het aanbod van capaciteit (storage) op optimale wijze op elkaar af te stemmen. In het geval van de keten worden van tevoren met ketenpartners afspraken gemaakt over de capaciteit die zij ten behoeve van de keten beschikbaar moeten hebben. | D31: ITSM Foundation; ITIL Foundation, IT Foundation; A+ Essentials, Informatiesystemen Foundation
B32: 3.3.3 Configuration Management | C32: De functie van is afgeleid van het ITIL proces ‘configuratiemanagement’. De configuratiemanager is meer een operationeel beheerde van de configuratiedatabase. Hij identificeert en classificeert de zogenoemde ‘configuratie-items’en legt deze - al dan niet zelf – vast in de configuratiedatabase. Als gevolg van de tendens tot concentratie van rekencentra en dus grotere mainframeomgevingen, evenals de noodzaak van een zeer zorgvuldig licentiebeheer, neemt de druk op de kwaliteit van het configuratiemanagement toe. Configuratiemanagement heeft dus een belangrijke taak in de op- en verdere uitbouw van het configuratieproces en vervult hierin een actieve ‘voortrekkersrol’. | D32: ITSM Foundation; ITIL Foundation, IT Foundation; A+ Essentials, Informatiesystemen Foundation, Applicatiemanagement Foundation, Information Security Foundation
B33: 3.3.4 Release Management | C33: De releasemanager is verantwoordelijk voor het samenstellen en invoeren van releases (versies) van informatiesystemen. Niet alleen de afstemming van releases op de businesseisen (zoals invoerings- en beschikbaarheidsdata) is van belang maar ook het bewaken dat releases zonder problemen voor de continuïteit en consistentie van de informatievoorziening en de bedrijfsvoering plaatsvinden. | D33: ITSM Foundation; ITIL Foundation, IT Foundation; A+ Essentials, Informatiesystemen Foundation
A34: MOGELIJK MAKEN | B34: 4.1.1 Securitymanagement | C34: ICT security/securitymanagement (informatiebeveiliging) omvat het ontwerpen, implementeren, onderhouden en evalueren van beveiligingsmaatregelen met betrekking tot de ICT (hardware en software). De security officer (of BVA) is verantwoordelijk voor de beveiliging van de informatievoorziening/ICT. De focus ligt op het beveiligen van de informatievoorziening/ICT wat betreft de vertrouwelijkheid, de integriteit en de beschikbaarheid van informatie. | D34: Business Information Management Foundation
B35: 4.1.2 Informatie Risicomanagement | C35: De risicomanager is primair verantwoordelijk voor het identificeren en mitigeren van risico’s die zijn verbonden aan de beschikbaarstelling en het gebruik van componenten van de informatievoorziening, zoals netwerken, servers, informatiesystemen, of applicaties, enzovoort. Meestal is de scope van de verantwoordelijkheden beperkt tot de informatievoorziening, maar soms wordt deze functie ook ingezet voor het identificeren en mitigeren van risico’s in programma’s of projecten. In vele gevallen levert de risicomanager een bijdrage aan het beleid en de richtlijnen voor risicomanagement. Daarnaast stelt hij ook concrete risicobeheersmaatregelen op en/of toets hij de gewenste werking. | D35: Business Information Management Foundation, Information Security Foundation based on ISO/IEC 27002, Prince2 Foundation; Managing Successful Programs Practitioner, IT Management Foundation; Professional Management and Improvement of IT Service Management processes
B36: 4.1.3 Cyber Securitymanagement | C36: Cybersecurity is een relatief jong vakgebied wat volop in ontwikkeling is. Over het algemeen zijn cybersecurity analisten belast met het proactief detecteren van kwetsbaarheden en dreigingen en het nemen van maatregelen om gevolgen van onbekende dreigingen te voorkomen en/of te mitigeren. Daarnaast worden cybersecurity specialisten ingezet op diepgaande analyses en forensisch onderzoek van eventueel besmette en gecompromitteerde systemen. De Cybersecurityspecialist moet als het ware in de huid van een hacker kunnen kruipen. | D36: TCP/IP, UDP, DNS. DHCP, FTP, SNMP, SMTP, SSH, SSL, HTTP, HTTPS (Certificaten gehaald bij : SANS/GIA/ ISACA) Tooling : Nmap, Wireshark, Metasploit, Javascript, HTML, Python, HP ArcSight, Splunk
B37: 4.2.1 Categoriemanagement I(V) | C37: Voor sommige producten en diensten binnen de Informatievoorziening staat de klassieke benadering van inkopen onder druk. Het paradigma van ‘het controleren en beheersen van aanbieders én het sturen door de opdrachtgever’ tendeert naar meer ‘loslaten en vertrouwen én het laten leiden door de opdrachtnemer’. Naast deze tendens naar meer strategisch partnerschap, waarbij veeleer op toegevoegde waarde dan op prijs wordt in¬gekocht, ontstaat er ook aandacht voor budget neutrale vormen van inkoop (ruilmodellen, uitwisselingsplatforms). | D37: Rijksacademie voor Project- en Programmamanagement; Managing Successful Programs Practitioner, (Post) HBO-modules, Rijksacademie Inkoop, Aanbesteding en IV
B38: 4.2.2 Inkoop I(V) | C38: Voor sommige producten en diensten binnen de Informatievoorziening staat de klassieke benadering van inkopen onder druk. Het paradigma van ‘het controleren en beheersen van aanbieders én het sturen door de opdrachtgever’ tendeert naar meer ‘loslaten en vertrouwen én het laten leiden door de opdrachtnemer’. Naast deze tendens naar meer strategisch partnerschap, waarbij veeleer op toegevoegde waarde dan op prijs wordt ingekocht, ontstaat er ook aandacht voor budget neutrale vormen van inkoop (ruilmodellen, uitwisselingsplatforms). | D38: (Post) HBO-modules, Rijksacademie In- koop, Aanbesteding en IV, Prince2 Foundation
B39: 4.2.3 Relatiemanagement I(V) | C39: De relatiemanager is verantwoordelijk voor het relatiebeheer met de klant en het adviseren van de klant bij behoeften of problemen. Hij/zij draagt zorg voor de nakoming van gemaakte afspraken conform contracten. | D39: ITSM Foundation; ITIL Foundation, Nima B, Business Information Management Foundation, Informatiesystemen Foundation
B40: 4.2.4 Contract- / Leveranciermanagement | C40: De contractmanager bij een klantorganisatie is verantwoordelijk voor het, namens de klant, afsluiten en beheren van contracten met leveranciers. De focus van deze functie ligt meestal op het beheren van de juridische en financiële aspecten van een contractuele overeenkomst. De leveranciermanager is verantwoordelijk voor het aansturen van een leverancier op de inhoudelijke aspecten van de met een leverancier overeengekomen dienstverlening. Hij werkt nauw samen met de contractmanager. | D40: Contractmanagement Foundation (CATS), (Post) HBO-modules, ITSM Foundation; ITIL Foundation
B41: 4.3.1 Informatieanalyse | C41: De informatieanalist analyseert op basis van organisatieonderzoek de behoeften aan informatie van een organisatie en/of gebruikers. Hij vertaalt de onderzoeksresultaten in geïdentificeerde objecten en in het informatie- of gegevens- of datamodel. Ook wel functioneel ontwerp genoemd. Het vakgebied Informatievoorziening vernieuwt zichzelf voortdurend en geeft mogelijkheden voor vernieuwing of verbetering van Iv-bedrijfsprocessen en organisatie. Informatieanalyse toont zich initiatiefvol in de vertaling van technologische en maatschappelijke ontwikkelingen, maar ook in het (doen) uitvoeren van onderzoek naar de kwaliteit van de Iv-bedrijfsprocessen en het vertalen daarvan naar realistische mogelijkheden voor verbetering van- en consequenties voor de Iv-bedrijfsvoering. | D41: TOGAF practitioner, Bachelor Bedrijfskundige Informatica, Information Security Foundation based on ISO/IEC 27002, Ontwikkeling Informatiesystemen Foundation, Object Oriëntatie Foundation, Applicatiemanagement Foundation, ITSM Foundation; ITIL Foundation
B42: 4.3.2 Business Analyse | C42: De business analist is een adviseur voor de inrichting van bedrijfsprocessen, de bedrijfsvoering en de daarvoor benodigde informatievoorziening. De business analist analyseert (de behoeften aan) informatie en informatiesystemen, uitgaande van de eisen aan de bedrijfsprocessen en de workflow daarbinnen. In het verlengde daarvan wordt meegewerkt aan het vaststellen en verbeteren van de informatievoorziening in het algemeen en aan specifieke of individuele informatiesystemen om daarmee bedrijfsprocessen optimaal te ondersteunen. Bij SAFe is de business analist is in de meeste gevallen verantwoordelijk voor het opstellen van de business epics op portfolio niveau. In die hoedanigheid vormt deze rol een belangrijke schakel tussen de bedrijfsvisie aan de ene kant, en de realisatie van de bedrijfsdoelen die deze visie invullen anderzijds. Op corporate dan wel domein portfolio niveau zal de Business Analist samen met de enterprise architecten een team vormen die samen als team zorgdragen voor opstellen van epics, om zodoende de organisatie van werkvoorraad te voorzien. Het team kan werken als team, maar de kanban werkwijze past hier ook. In elk geval visualiseren zij de voortgang van alle epics middels een fysiek kanban bord. Voor die epics die de business analist opstelt kan hij de rol aan van epic owner aannemen. | D42: TOGAF practitioner, Bachelor Bedrijfskundige Informatica, Information Security Foundation based on ISO/IEC 27002, Ontwikkeling Informatiesystemen Foundation, Object Oriëntatie Foundation, Applicatiemanagement Foundation, ITSM Foundation; ITIL Foundation, SAFE Agilist, SAFe Product Owner
B43: 4.3.3 Business Intelligence / Data Analyse | C43: Business intelligence/ data analyse is erop gericht informatie te verzamelen en te analyseren teneinde beslissingsondersteunende informatie te verkrijgen. De BI/data-specialist is een functie die sterk in ontwikkeling is als gevolg van de toegevoegde waarde van datamining (big-data. De BI/data-specialist analyseert behoeften aan (strategische of tactische) managementinformatie en stelt query’s op waarmee datamining wordt gerealiseerd en waarmee de gevraagde informatie kan worden gepresenteerd. | D43: TOGAF practitioner, Ontwikkeling Informatiesystemen Foundation, Object Oriëntatie Foundation, Bachelor Bedrijfskundige Informatica, Python Fundamentals / Advanced
B44: 4.3.4 Data Science | C44: Data Science is een specialisme voor het definiëren en verkrijgen van relevante informatie voor de bedrijfsvoering van een organisatie of afdeling. Vaak zet de Data Scientist geavanceerde BI-tooling in en definieert algoritmen om de gewenste informatie beschikbaar te krijgen. | D44: Business Information Management Foundation, Data Management Body of Knowledge, Python Fundamentals / Advanced
B45: 4.4.1 Informatiecoaching | C45: Informatiecoaching leert medewerkers persoonlijk, in klassikale vorm of met digitale instrumenten hun digivaardigheid te vergroten. O.a. hoe ze sneller met de nodige accuratesse, gegeven de beschikbare middelen, de benodigde informatie het best kunnen vinden, gebruiken en vastleggen voor toekomstig (her)gebruik. Met kennis van zaken (processen, kaders en richtlijnen, mogelijkheden van systemen) biedt informatiecoaching praktische handvatten zodat medewerkers hun werk efficiënt en met plezier vormgeven. Informatiecoaching draagt bij aan de lerende organisatie door informatieprofielen (informatiebehoeften & zoekgedrag persona’s) op te stellen, te onderhouden, te analyseren en voorstellen voor structurele verbetering te doen.
B46: 4.4.2 Leer- Ontwikkelmanagement | C46: De Leer-ontwikkelmanager is een manager die de principes en de toepassing van Lean-Agile leiderschap uitdraagt in een SAFe omgeving. Meer specifiek: • Heeft de HR-verantwoordelijkheid voor individuele medewerkers in een ART of team. • Zorgt voor een leer- en ontwikkelomgeving waarin medewerkers in 1e instantie beter kunnen worden in het eigen werkgebied (mastery) en in 2e instantie werken aan de persoonlijke (carrière-)ontwikkeling. • Zorgt ervoor dat governance, ondersteunende processen zo worden ingericht dat medewerkers en teams kunnen excelleren. • Ontwikkelt mensen die op hun beurt zorgen voor oplossingen • Begeleidt teams naar zelforganisatie en team excellence (high performance teams) • Is getraind in lean en agile principes en deze lange-termijn-filosofie vormt de basis voor het dagelijks handelen en de dagelijkse beslissingen • Begrijpt lean en agile gedrag en coacht hierop/hierin • Is praktijk-ervaren met het gedachtegoed en de tools van continu-verbeteren en draagt dit over • Is het voorbeeld van ‘practice what you preach’ en voelt persoonlijke verantwoordelijkheid voor lean-agile succes • Ondersteunt scrummasters en releasetrain engineers in het wegnemen van impediments. | D46: Leergang Coachend Leidinggeven of Agile Leidinggeven of Dienend, Faciliterend en Coachend Leiderschap in een Agile omgeving , Opleiding Teamcoach – Individueel Coachen, Resultaatgericht Leidinggeven, DevOps Fundamentals
B47: 4.4.3 (Agile) Coaching | C47: Om de verandering naar agile werken te begeleiden is het noodzakelijk om ondersteuning te geven bij de introductie van nieuwe denkwijzen, methoden en raamwerken. Dit gebeurt op proces, rol en inhoud. Agile coaching staat voor iemand in de organisatie die het mogelijk maakt om organisatorische veranderingen te faciliteren, aan te jagen of zelfs te leiden. Hij heeft skills nodig op gebied van veranderingsmanagement en psychologie, maar de rol vereist ook kennis van en gevoel bij de organisatiecultuur en -ontwikkeling. Hij kan inschatten wat de mate van volwassenheid is en welke coaching technieken en leer- en ontwikkelinterventies passend zijn. Een (agile) coach heeft een bredere visie van het bedrijf en de medewerkers. Een agile coach kan werkzaam zijn op elke afdeling, vanuit de taakopdracht om de teams/medewerkers/managers te helpen zich te ontwikkelen. Agile coaches werken als zogenaamde change agents, en geven medewerkers de kracht en touwtjes in handen om beter te kunnen gaan werken. Uitgangspunt daarbij is dat teams zelf-organiserend zijn. Het is niet de taak van een agile coach om te bepalen hoe de problemen moeten worden opgelost maar om het probleemoplossend vermogen van een individu en/of van het team te vergroten. Een (agile) coach is daarmee een mentor, spiegel of een veranderingsmanager of een combinatie. | D47: Leergang Coachend Leidinggeven of Agile Leidinggeven of Dienend, Faciliterend en Coachend Leiderschap in een Agile omgeving , Opleiding Teamcoach, Resultaatgericht Leidinggeven, DevOps Fundamentals
B48: 4.5.1 Product Owner | C48: De Product Owner is verantwoordelijk voor het maximaliseren van de waarde van het (business) product en de werkzaamheden van het Ontwikkelteam. Hoe dit precies gedaan wordt verschild enorm per organisatie, Scrum Team en individu. Zo kan een Product Owner die werkzaam is in een beleidsdirectie veel meer een procesmatige rol zijn die niet zijn tijd volledig vervult. Een Product Owner daarentegen bij bijvoorbeeld de ontwikkelafdeling van een uitvoeringsorganisatie zal die rol waarschijnlijk full time vervullen en veel meer inhoudelijk zijn. De Product Owner is de enige persoon die verantwoordelijk is voor het managen van de Product Backlog zoals benoemd in Scrum. In SAFe heet deze de Program of Solution Backlog of Team Backlog. In een SAFe omgeving heeft de Product Owner meer focus op het Scrumteam dan op andere zaken zoals de buitenwereld. Dat laatste wordt vaak ingevuld door de Product Manager. | D48: Leergang Coachend Leidinggeven of Agile Leidinggeven of Dienend, Faciliterend en Coachend Leiderschap in een Agile omgeving , Writing User Stories , Stakeholder Management Training , Resultaatgericht Leidinggeven , DevOps Fundamentals , Effectief Beïnvloeden
B49: 4.5.2 Product Manager | C49: De Product Manager is verantwoordelijk voor het maximaliseren van de waarde van het (business) product en de werkzaamheden van de ontwikkelteams. Hoe dit precies gedaan wordt verschild enorm per organisatie, Scrum Team en individu. De Product Manager is de enige persoon die verantwoordelijk is voor het managen van de Program Backlog (voor een ART) zoals benoemd in SAFe en kan daarbij de rol van Epic Owner op zich nemen. Over het algemeen is een Product Manager in een SAFe omgeving meer met de buitenwereld bezig, met name het afstemmen met alle belanghebbenden. | D49: Leergang Coachend Leidinggeven of Agile Leidinggeven of Dienend, Faciliterend en Coachend Leiderschap in een Agile omgeving , Writing User Stories , Stakeholder Management Training , Resultaatgericht Leidinggeven , DevOps Fundamentals , Effectief Beïnvloeden
B50: 4.5.3 (Gedelegeerd) Business Owner | C50: De business owner heeft een essentiële rol die (in samenwerking met andere business owners) de verantwoordelijkheid draagt voor governance, doelgerichtheid, return on investment van een ART (Agile Release Train) of Value Stream, ook wel vertaald als productline, center of excellence etc. De business owner toont het leiderschap en heeft het vertrouwen van de organisatie dat er richting wordt geven aan de doelstellingen, belemmeringen worden weggenomen, vertegenwoordiging is georganiseerd voor de business, de klant en de ontwikkelorganisatie. Hij/ zij geeft rekenschap over doelen en resultaten en indien nodig over de gemaakte keuzes. De business owner geeft richting aan zelf-organiserende teams & releasetrains met behulp van ontwikkeling en onderhoud van de missie en visie. Hij/zij zorgt voor alignement op de strategische thema’s. Hij ondersteunt de teams met coaching en ontwikkeling van vaardigheden. De business owner is een lean-agile leider. Daarnaast is hij/zij de Epic Owner. De bovengenoemde beschrijving van dit profiel zou inhouden dat dit profiel thuishoort in schalen boven schaal 15. Te denken valt aan posities op het niveau van Directeur of Directeur Generaal. Aangezien de KWIv profielen niet verder gaan dan schaal 15 is ervoor gekozen de term Gedelegeerd te gebruiken. In de praktijk zal deze rol zal in voorkomende situaties niet altijd door de Business Owner zelf worden opgepakt, maar worden gedelegeerd. | D50: Leergang Coachend Leidinggeven of Agile Leidinggeven of Dienend, Faciliterend en Coachend Leiderschap in een Agile omgeving , Stakeholder Management Training , Resultaatgericht Leidinggeven , DevOps Fundamentals , Effectief Beïnvloeden
A51: STUREN | B51: 5.1.1 Projectleiderschap I(V) | C51: De projectleider is operationeel verantwoordelijk voor een project op het gebied van projectmanagement. Hij werkt in opdracht van een project- of programmamanager, of van een andere opdrachtgever, bijvoorbeeld een manager van een afdeling. | D51: IT Management Foundation; Professional Management and Improvement of IT Service Management processes, Rijksacademie voor Project- en Programmamanagement, Business Information Management Foundation, ITSM Foundation; ITIL Foundation, Agile Scrum Foundation
B52: 5.1.2 Projectmanagement I(V) | C52: De projectmanager is verantwoordelijk voor een project op strategisch/tactisch niveau. | D52: IT Management Foundation; Professional Management and Improvement of IT Ser- vice Management processes, Rijksacademie voor Project- en Programmamanagement, Business Information Management Foundation, ITSM Foundation; ITIL Foundation, Applicatiemanagement Foundation, Agile Scrum Foundation
B53: 5.1.3 Programmamanagement I(V) | C53: De programmamanager is verantwoordelijk voor het beheer en de coördinatie van de realisatie van een portfolio aan project of soms een specifiek een programma van activiteiten en projecten. De programmamanager coördineert daarbij het definiëren van projecten en het prioriteren en opnemen van projecten in zijn programmaplan of projectenportfolio. | D53: IT Management Foundation; Professional Management and Improvement of IT Service Management processes, Rijksacademie voor Project- en Programmamanagement; Managing Successful Pro- grams Practitioner, Business Information Management Foundation, ITSM Foundation; ITIL Foundation, Applicatiemanagement Foundation, SAFe (Scaled Agile Framework), RTE (Rail Train Engineer)
B54: 5.1.4 Portfoliomanagement | C54: Portfoliomanagement is een relatief nieuw taakgebied. De meeste organisaties die met portfoliomanagement houden zich vooral bezig met PPM (project portfoliomanagement). Een portfoliomanager is in dat geval iemand die een portfolio van project monitort en het management daarover rapporteert. Indien gewenst kan de portfoliomanager ook adviezen opstellen. | D54: Informatiesystemen Foundation, Business Information Management Foundation, Managing Successful Programs Foundation, IT Management Foundation, Foundation Certificate in Portfolio, Programme and Project Offices
B55: 5.2.1 Scrum Master | C55: De Scrum Master is ervoor verantwoordelijk dat Scrum wordt begrepen en goed wordt uitgevoerd. Scrum Masters doen dit door ervoor te zorgen dat het Scrum Team zich houdt aan de Scrum theorie, praktijk en regels. De Scrum Master is een dienend leider voor het Scrum Team. De Scrum Master helpt diegenen buiten het Scrum Team te begrijpen welke van hun interacties met het Scrum Team behulpzaam zijn en welke niet. De Scrum Master helpt iedereen deze interacties te veranderen om zo de waarde die door het Scrum Team wordt gecreëerd te maximaliseren. | D55: Leergang Coachend Leidinggeven of Agile Leidinggeven of Dienend, Faciliterend en Coachend Leiderschap in een Agile omgeving , Opleiding Teamcoach, Resultaatgericht Leidinggeven, DevOps Fundamentals
B56: 5.2.2 Release Train Engineer | C56: De Release Train Engineer (RTE) in het Scaled Agile Framework (SAFe) is de Scrum Master van het team van teams dat wordt aangeduid met de term ‘Agile Release Train’, (ART). De RTE ondersteunt meerdere niveaus (team van teams, ondersteunende teams, voorbereidende teams, uitvoerende teams, afrondende teams), en moet het inzicht hebben om over al die niveaus zijn taken en inspanning te verdelen. Hij/zij zorgt er letterlijk voor dat de ART goed wordt onderhouden en kan blijven rijden. De RTE is tevens verantwoordelijk voor het faciliteren van alle evenementen tijdens de rit, zoals de 2-daagse planning of de kwartaal systeem review. | D56: Leergang Coachend Leidinggeven of Agile Leidinggeven of Dienend, Faciliterend en Coachend Leiderschap in een Agile omgeving , Opleiding Teamcoach , Resultaatgericht Leidinggeven , DevOps Fundamentals
B57: 5.3.1 Informatiemanagement | C57: De informatiemanager is eindverantwoordelijk voor de informatievoorziening van een organisatie, directoraat of directie op tactisch/operationeel niveau. Informatiemanagement wordt sterk wisselend ingevuld. Dit wordt veroorzaakt door het feit dat informatievoorziening in sommige organisaties beschouwd wordt als een kostenpost, waar in andere organisaties informatievoorziening beschouwd wordt als belangrijkste strategische factor. Afhankelijk van deze verschillende betekenissen wordt ook de invulling van Informatiemanagement bepaald. De verwachting is dat de strategische invulling op termijn gemeengoed zal zijn. | D57: Business Information Management Foundation, ITSM Foundation; ITIL Foundation, Applicatiemanagement Foundation, Projectmanagement Foundation; PRINCE2 Foundation, Managing Successful Programs Foundation, Information Security Foundation based on ISO/IEC 27002, IT Management Foundation
B58: 5.3.2 Data / Gegevensmanagement | C58: De datamanager is strategisch/tactisch verantwoordelijk voor de gegevens in een organisatie. In die rol stuurt hij/zij vaak op het opstellen van een corporate datamodel, waarin de voor de organisatie van belang zijnde gegevens (informatie) en de gegevensdefinitie worden vastgelegd (overigens vaak ook de meer technische informatie over gegevens, zoals informatie over de (fysieke) vastlegging van gegevens in databases en in welke applicaties of systemen gegevens worden beheerd). | D58: Databases en QSL Foundation, Ontwerp en Ontwikkeling Informatiesystemen Foundation, IT Foundation; A+ Essentials, Informatiesystemen Foundation, Applicatiemanagement Foundation, Information Security Foundation
B59: 5.3.4 Meta Data / Gegevensmanagement | C59: Om digitale informatie te begrijpen (waardebepaling) en uit te kunnen uitwisselen, is het noodzakelijk dat we bekend zijn met elkaars manier van vastleggen van metagegevens. Standaardisatie van de manier waarop die informatie wordt beschreven is hierbij randvoorwaardelijk. Dat doen we door afspraken te maken over welke metagegevens minimaal nodig zijn, wat hun definitie is en over de manier waarop die gegevens binnen de organisatie worden vastgelegd en beheerd. Metagegevensmanagement borgt de eenheid in definitie en gebruik van sets van verplichte en niet verplichte metagegevens en biedt het fundament voor het duurzaam beheer, de (inter)departementale uitwisseling en het actief openbaar maken van overheidsinformatie. Het portfolio van metagegevens beslaat de beschrijvende, structurele, technische en administratieve metagegevens. Met een visie op het domein geeft metagegevensmanagement inzicht in de toegevoegde waarde van metagegevens voor de strategische, tactische en operationele doelstellingen van de organisatie. Metagegevensmanagement legt hiermee het fundament voor de opbouw van een dekkend portfolio (metagegevens repository) als mede voor de sturing op de kwaliteit van de metagegevens voor de beoogde toepassingen. Metagegevensmanagement zorgt in het tactische beheer ervoor dat de bedrijfsgegevens in de organisatie correct en consistent worden geïnterpreteerd en gebruikt. Dit geheel conform de eisen die daar door organisatie en wet en regelgeving aan worden gesteld op gebied van onder andere (duurzame) toegankelijkheid, vertrouwelijkheid en privacybescherming voor zolang als dat nodig is. | D59: Databases en QSL Foundation, Ontwerp en Ontwikkeling Informatiesystemen Foundation, IT Foundation; A+ Essentials, Informatiesystemen Foundation, Applicatiemanagement Foundation, Information Security Foundation
B60: 5.3.5 Recordmanagement | C60: Recordmanagement is het deel van het management dat verantwoordelijk is voor de efficiënte en systematische controle over het aanmaken, ontvangen, onderhoud, gebruik en beschikbaarheid van records, met inbegrip van het proces van het bemachtigen en in stand houden van bewijs en informatie over bedrijfsactiviteiten en transacties in de vorm van records. Recordmanagement staat nadrukkelijk in dienst van de taken of functies die een organisatie uitvoert en de risico's die zij loopt als er geen goede archivering zou plaatsvinden. De snelle technische ontwikkelingen, mogelijkheden van de ICT en het procesgericht werken in een digitale werkomgeving beïnvloeden nadrukkelijk de vorm, inhoud, structuur van de opgeslagen records als mede de volledigheid en duurzaam behoud voor zolang als dat nodig is. Juist in een digitale werkomgeving van essentieel belang hierop te anticiperen door aan de bron alle kwaliteitseisen als uitgangspunt te nemen. Recordmanagement heeft hierbij de rol van vormgever van de kaders en normen en verantwoordelijk is voor de inbedding van de kwaliteitseisen in het informatie- en archiefbeheer in termen van: • Eisen aan inhoud, structuur en vorm van records; • Regels voor vervanging, conversie en migratie, etc.; • Metagegevens om de duurzame toegankelijkheid te borgen; • Regels voor selectie en vernietiging. Voor het digitaal inrichten van het gehele werk- en archiveringsproces is record-management een fundamenteel onderdeel van een integrale procesgerichte aanpak waarin alle aspecten van goed informatie-/recordbeheer en integrale kwaliteitszorg zijn meegenomen. Niet alleen de technische maar vooral de organisatorische aspecten die mede bepaald worden door de formele inrichting van het werkprocessen. O.a. door vóór, tijdens en na het werkproces de noodzakelijke beheeracties zo in te richten dat deze kwaliteitseisen voor digitale duurzaamheid garanderen. Recordmanagement biedt de specialistische kennis en kunde die vereist is om de noodzakelijke kwaliteitseisen in de organisatie te verankeren.
B61: 5.3.6 Kwaliteitsmanagement Iv | C61: Kwaliteitsmanagement IV richt zich op het optimaliseren van de kwaliteit van IV processen, producten & services. Het is geen op zichzelf staand domein, maar komt terug in alle delen van het management van de organisatie. Het verbeteren van de kwaliteit is iets waar de organisatie op kan sturen waarbij de (interne) klant centraal staat. Met als focus het borgen van een optimale beschikbaarheid en kwaliteit van de duurzaam toegankelijke informatiehuishouding verbindt kwaliteitsmanagement IV de verschillende bedrijfsonderdelen die output leveren aan het uiteindelijke resultaat: de ‘end to end’ benadering. Kwaliteitsmanagement is continu op zoek naar verbeteracties en is gericht op innovaties en het implementeren hiervan. Met name in grote programma’s is het gebruikelijk een kwaliteitsmanager aan te stellen. | D61: IT Management Foundation; Professional Management and Improvement of IT Ser- vice Management processes, Rijksacademie voor Project- en Programmamanagement, Business Information Management Foundation, ITSM Foundation; ITIL Foundation, Applicatiemanagement Foundation, Agile Scrum Foundation
B62: 5.4.1 It-Control | C62: Het vakgebied IT-Control is volop in ontwikkeling. Steeds zwaardere eisen worden gesteld aan de kwaliteit van het oordeel. Het belang van IT-control voor de strategie van de organisatie neemt toe. IT-control staat aan de vooravond van een verdergaande professionalisering, tot uitdrukking komend in onder andere de ontwikkeling van realistische normenkaders voor onderzoek. De IT-Controller is, evenals zijn evenknie de financieel controller, toezichthouder en verantwoordelijk voor de controle op het verantwoorde beheer van de informatievoorziening/ICT. De IT-controller voert soms de rol uit van EDP-auditor (die specifiek een controlerende rol heeft), en is voorts verantwoordelijk voor het toetsen van de kwaliteit, de integratie en de kosten van de informatievoorziening/ICT, inclusief projecten. | D62: Informatiesystemen Foundation, Business Information Management Foundation, IT Foundation; A+ Essentials, Databases en QSL Foundation, Applicatiemanagement Foundation, TOGAF Practitioner, Information Security Foundation based on ISO/IEC 27002, ITSM Foundation; ITIL Foundation

Sheet Info VOG Items (hidden)
B1: VOG Overzicht Items
B3: Specifiek screeningsprofiel
A4: 01 | B4: Politieke ambtsdragers
A5: 06 | B5: Visum en emigratie
A6: 25 | B6: (Buitengewoon) opsporingsambtenaar
A7: 40 | B7: Vakantiegezinnen en adoptie
A8: 45 | B8: Gezondheidszorg en welzijn van mens en dier
A9: 50 | B9: Exploitatievergunning; Dit screeningsprofiel is van toepassing bij het aanvragen van een exploitatievergunning voor een horecabedrijf bij de gemeente
A10: 55 | B10: Juridische dienstverlening
A11: 60 | B11: Onderwijs Dit screeningsprofiel is van toepassing op al het personeel dat werkzaam is bij een educatieve instelling
A12: 65 | B12: Taxibranche; chauffeurskaart Dit screeningsprofiel kan alleen worden gebruikt als Kiwa Register B.V. de organisatie is die de VOG verlangt
A13: 70 | B13: Taxibranche; ondernemersvergunning Dit screeningsprofiel kan alleen worden gebruikt als Kiwa Register B.V. de organisatie is die de VOG verlangt
A14: 75 | B14: (Gezins)voogd bij voogdijinstellingen, reclasseringswerker, raadsonderzoeker en maatschappelijk werker
A15: 80 | B15: Beëdigd tolken/vertalers Dit screeningsprofiel kan alleen worden gebruikt als de Raad voor Rechtsbijstand de organisatie is die de VOG verlangt
A16: 85 | B16: Lidmaatschap schietvereniging
A17: 95 | B17: Financiële dienstverlening
B18: Algemeen screeningsprofiel
A19: 11 | B19: Bevoegdheid hebben tot het raadplegen en/of bewerken van systemen
A20: 12 | B20: Met gevoelige/vertrouwelijke informatie omgaan
A21: 13 | B21: Kennis dragen van veiligheidssystemen, controlemechanismen en verificatieprocessen
B22: Geld
A23: 21 | B23: Met contante en/of girale gelden en/of (digitale) waardepapieren omgaan
A24: 22 | B24: Budgetbevoegdheid hebben
B25: Goederen
A26: 36 | B26: Het bewaken van productieprocessen
A27: 37 | B27: Het beschikken over goederen
A28: 38 | B28: Het voorhanden hebben van stoffen, objecten en voorwerpen e.d., die bij oneigenlijk of onjuist gebruik een risico vormen voor mens (en dier)
B29: Diensten
A30: 41 | B30: Het verlenen van diensten (advies, beveiliging, schoonmaak, catering, onderhoud, etc)
A31: 43 | B31: Het verlenen van diensten in de persoonlijke leefomgeving
B32: Zakelijke transacties
A33: 53 | B33: Beslissen over offertes (het voeren van onderhandelingen en het afsluiten van contracten) en het doen van aanbestedingen
B34: Proces
A35: 61 | B35: Het onderhouden/ombouwen/bedienen van (productie)machines en/of apparaten, voertuigen en/of luchtvaartuigen
A36: 62 | B36: (Rijdend) vervoer waarbij goederen, producten, post en pakketten worden getransporteerd en/of bezorgd, anders dan het intern transport binnen een bedrijf
A37: 63 | B37: (Rijdend) vervoer waarbij personen worden vervoerd
B38: Aansturen organisatie
A39: 71 | B39: Personen die vanuit hun functie mensen en/of een organisatie (of een deel daarvan) aansturen
B40: Personen
A41: 84 | B41: Belast zijn met de zorg voor minderjarigen
A42: 85 | B42: Belast zijn met de zorg voor (hulpbehoevende) personen, zoals ouderen en gehandicapten
A43: 86 | B43: Kinderopvang (alleen aanvinken in combinatie met andere functieaspecten)

Sheet Rapportage Info (hidden)
A1: Rapportagegegevens Inhuur Aanvraag ICT | D1: Referentienummer | E1: ='Aanvraag inhuur'!D1 -> 0
A3: U kunt de ingevulde rubrieken overnemen (Kopiëren/Plakken) op uw rapportagewerkblad
A4: Voor vragen kunt u contact opnemen met de contractmanager bereikbaar via : | E4: ='Brongegevens dienst'!B20 -> iuc-inhuur@iuc-noord.nl
A6: INFORMATIE VOOR RAPPORTAGE OPDRACHTNEMERS
A8: Datum aanvraag (Conform opgave deelnemende dienst) | B8: Referentienummer AANVRAAG van deelnemende dienst | C8: Departement | D8: Deelnemende dienst | E8: Directie/onderdeel binnen de deelnemende dienst | F8: Functienaam (roepnaam) | G8: Schaal (BBRA) | H8: Functiegroep (Functie Gebouw Rijk) | I8: Dominante kwaliteitenprofiel conform Kwaliteitsraamwerk I(v) | J8: Maximum tarief gesteld door deelnemende dienst | K8: Doelgroep social return gevraagd (Ja/Nee/ Indifferent) | L8: Soort Aanvraag
A9: ='Aanvraag inhuur'!C29 -> 2020-12-28T15:16:22.910 | B9: ='Aanvraag inhuur'!D1 -> 0 | C9: ='Aanvraag inhuur'!B13 -> Ministerie van Justitie & Veiligheid | D9: ='Aanvraag inhuur'!B14 -> CJIB | E9: ='Aanvraag inhuur'!B15 -> 0 | F9: ='Aanvraag inhuur'!B61 -> 0 | G9: ='Aanvraag inhuur'!B59 -> 0 | H9: ='Aanvraag inhuur'!B45 ->  | I9: ='Aanvraag inhuur'!D43 -> 0 | J9: =IF(AND('Aanvraag inhuur'!B6>0,'Aanvraag inhuur'!B6<226),"Ja","Nee") -> Nee | K9: Indifferent | L9: ='Aanvraag inhuur'!B5 -> Regulier
C11: Naam budgethouder bij deelnemende dienst | D11: Email-adres budgethouder bij deelnemende dienst
C12: ='Aanvraag inhuur'!B16 -> 0 | D12: ='Aanvraag inhuur'!C9 -> iuc-inhuur@iuc-noord.nl

Sheet Brongegevens dienst (hidden)
A1: Aanvraagopties | C1: ORGANISATIE | H1: FEESTDAGEN | R1: LEVERANCIERSINFORMATIE
A2: Bij meerdere geschikte kandidaten behoudt de dienst zich het recht voor om meerdere gunningen te doen. | C2: Departement | D2: Deelnemende dienst | E2: Directie/Bedrijfsonderdeel (sorteer A-Z) | F2: Emailadres Inhuurdesk | H2: Jaar | I2: 1e Paasdag | J2: 2e Paasdag | K2: Hemelvaartsdag | L2: Koningsdag | M2: 1e Pinksterdag | N2: 2e Pinksterdag | O2: 1e Kerstdag | P2: 2e Kertsdag | Q2: Nieuwjaar | R2: Naam (Sorteren!) | S2: Worden niet gebruikt door dienst. Wel laten staan. | X2: Email-adres
A3: Perceel 1 | C3: Ministerie van Justitie & Veiligheid | D3: CJIB | E3: ICT - DevOps1 | F3: iuc-inhuur@iuc-noord.nl | H3: 2016 | I3: =FIXED(("4/"&H3)/7+MOD(MOD(H3,19)*19-7,30)*14%,0)*7-6 -> 42456 | J3: =I3+1 -> 42457 | K3: =I3+39 -> 42495 | L3: 42487 | M3: =I3+49 -> 42505 | N3: =I3+50 -> 42506 | O3: =DATE(H3,12,25) -> 42729 | P3: =DATE(H3,12,26) -> 42730 | Q3: =DATE(H3,1,1) -> 42370 | R3: Atos
A4: Perceel 2 | E4: ICT - DevOps2 | H4: 2017 | I4: =FIXED(("4/"&H4)/7+MOD(MOD(H4,19)*19-7,30)*14%,0)*7-6 -> 42841 | J4: =I4+1 -> 42842 | K4: =I4+39 -> 42880 | L4: 42852 | M4: =I4+49 -> 42890 | N4: =I4+50 -> 42891 | O4: =DATE(H4,12,25) -> 43094 | P4: =DATE(H4,12,26) -> 43095 | Q4: =DATE(H4,1,1) -> 42736 | R4: CGI
A5: Lijst 1 | B5: Lijst 2 | E5: ICT - DevOps3 | H5: 2018 | I5: 43191 | J5: 43192 | K5: 43230 | L5: 43217 | M5: 43240 | N5: 43241 | O5: 43459 | P5: 43460 | Q5: 43101 | R5: IT-Staffing
A6: Ja | B6: Ja | E6: ICT - DevOps4 | H6: 2019 | I6: 43576 | J6: 43577 | K6: 43615 | M6: 43625 | N6: 43626 | O6: 43824 | P6: 43825 | Q6: 43466 | R6: Ordina
A7: Nee | B7: Nee | E7: ICT - DevOps5 | H7: 2020 | I7: 43933 | J7: 43934 | K7: 43972 | L7: 43948 | M7: 43982 | N7: 43983 | O7: 44190 | P7: 44191 | Q7: 43831 | R7: Seven Stars
B8: Indifferent | E8: ICT - DevOps6 | H8: 2021 | I8: 44290 | J8: 44291 | K8: 44329 | L8: 44313 | M8: 44339 | N8: 44340 | O8: 44555 | P8: 44556 | Q8: 44197 | R8: Sogeti
A9: Stamlocatie ICT Inhuur Documenten | E9: ICT - DevOps7 | H9: 2022 | I9: 44668 | J9: 44669 | K9: 44707 | L9: 44678 | M9: 44717 | N9: 44718 | O9: 44920 | P9: 44921 | Q9: 44562
A10: K:\5 Inkooptrajecten\5.7 Inhuur\ICT\CJIB\ | E10: ICT - Project & Analyse | H10: 2023 | I10: 45025 | J10: 45026 | K10: 45064 | L10: 45043 | M10: 45074 | N10: 45075 | O10: 45285 | P10: 45286 | Q10: 44927
E11: ICT - Infra & Integratie | H11: 2024 | I11: 45382 | J11: 45383 | K11: 45421 | M11: 45431 | N11: 45432 | O11: 45651 | P11: 45652 | Q11: 45292
E12: ICT - Service & Advies | H12: 2025 | I12: 45767 | J12: 45768 | K12: 45806 | M12: 45816 | N12: 45817 | O12: 46016 | P12: 46017 | Q12: 45658
A13: Status Aanvraag | B13: Status Kandidaat | E13: ICT - Algemeen | H13: 2026 | I13: 46117 | J13: 46118 | K13: 46156 | L13: 46139 | M13: 46166 | N13: 46167 | O13: 46381 | P13: 46382 | Q13: 46023
A14: Open | B14: Open | E14: Bedrijfsvoering | H14: 2027 | I14: 46474 | J14: 46475 | K14: 46513 | L14: 46504 | M14: 46523 | N14: 46524 | O14: 46746 | P14: 46747 | Q14: 46388
A15: In beoordeling | B15: Beoordelen | H15: 2028 | I15: 46859 | J15: 46860 | K15: 46898 | L15: 46870 | M15: 46908 | N15: 46909 | O15: 47112 | P15: 47113 | Q15: 46753
A16: Gunnen | B16: Gesprek | H16: 2029 | I16: 47209 | J16: 47210 | K16: 47248 | L16: 47235 | M16: 47258 | N16: 47259 | O16: 47477 | P16: 47478 | Q16: 47119
A17: Geen gunning | B17: Afgewezen | H17: 2030 | I17: 47594 | J17: 47595 | K17: =I17+39 -> 47633 | M17: =I17+49 -> 47643 | N17: =I17+50 -> 47644 | O17: =DATE(H17,12,25) -> 47842 | P17: =DATE(H17,12,26) -> 47843 | Q17: =DATE(H17,1,1) -> 47484
H18: 2031 | I18: 47951 | J18: 47952 | K18: =I18+39 -> 47990 | L18: 11440 | M18: =I18+49 -> 48000 | N18: =I18+50 -> 48001 | O18: =DATE(H18,12,25) -> 48207 | P18: =DATE(H18,12,26) -> 48208 | Q18: =DATE(H18,1,1) -> 47849
A19: Contractmanager | H19: 2032 | I19: 48301 | J19: 48302 | K19: 48340 | L19: 11806 | M19: 48350 | N19: 48351 | O19: 48573 | P19: 48574 | Q19: 48214
A20: Emailadres | B20: iuc-inhuur@iuc-noord.nl | H20: 2033 | I20: 48686 | J20: 48687 | K20: 48725 | L20: 12171 | M20: 48735 | N20: 48736 | O20: 48938 | P20: 48939 | Q20: 48580
A21: Telefoonnummer | B21: 050-5998884 | H21: 2034 | I21: 49043 | J21: 49044 | K21: 49082 | L21: 12536 | M21: 49092 | N21: 49093 | O21: 49303 | P21: 49304 | Q21: 48945
A22: Standaard tekst | H22: 2035 | I22: 49393 | J22: 49394 | K22: 49432 | M22: 49442 | N22: 49443 | O22: 49668 | P22: 49669 | Q22: 49310
A23: Het CJIB is een relatief jonge en ambitieuze uitvoeringsorganisatie van het Ministerie van Justitie en Veiligheid, en is gevestigd te Leeuwarden. Ruim 1200 gedreven medewerkers zorgen ervoor dat onze taken op de juiste wijze, ondersteund door adequate ICT en binnen de beschikbare middelen worden uitgevoerd. De ICT-organisatie heeft een interne schil met de mogelijkheid flexibel bij te schakelen. Het CJIB werkt met DevOps-teams. Zij ontwikkelt en beheert hoogwaardige (ICT) producten. | H23: 2036 | I23: 49778 | J23: 49779 | K23: 49817 | L23: 13267 | M23: 49827 | N23: 49828 | O23: 50034 | P23: 50035 | Q23: 49675
H24: 2037 | I24: 50135 | J24: 50136 | K24: 50174 | L24: 13632 | M24: 50184 | N24: 50185 | O24: 50399 | P24: 50400 | Q24: 50041
H25: 2038 | I25: 50520 | J25: 50521 | K25: 50559 | L25: 13997 | M25: 50569 | N25: 50570 | O25: 50764 | P25: 50765 | Q25: 50406
H26: 2039 | I26: 50870 | J26: 50871 | K26: 50909 | L26: 14362 | M26: 50919 | N26: 50920 | O26: 51129 | P26: 51130 | Q26: 50771
A36: Soort
A37: Regulier
A38: Proactief
A39: Strippenkaart
A40: Cluster
A41: Vrijblijvend
A42: Verambtelijking
